{"text_format":"3","workbook":"xlsx","n_sheets":3,"sheets":["Дані стратегії розвитку","Стратегія за гнучким методом","Відомості"],"not_rendered":{"defined_names":5},"read":"whole","date_system":"1900"}

{"sheet":"Дані стратегії розвитку","index":0,"n_rows":13,"n_cols":7,"rows_kept":13,"merged":[[12,1,12,4]]}
["Створіть стратегію розвитку за гнучким методом, указавши важливі проміжні етапи або дії в таблиці \"Дані стратегії розвитку\" на цьому аркуші.\nУ клітинці B1 наведено заголовок аркуша. \nІнформацію про використання цього аркуша, зокрема вказівки для невізуальних екранів, наведено на аркуші \"Відомості\".\nУ стовпці A наведено інші вказівки.","Дані часової шкали гнучкого методу"]
["Заголовки таблиці наведено в клітинках B2:E2. Сортуйте та шукайте певні елементи за допомогою фільтрів у заголовку.\nСтратегія розвитку за гнучким методом найкраще працює, коли таблицю відсортовано у порядку зростання за Пріоритет і Проміжний етап або дія.\nЗразок даних наведено в таблиці даних стратегії розвитку в клітинках B3:E12. \nВиконавши проміжний етап або дію, оновіть відповідне поле \"Результат\", щоб відобразити результат на аркуші \"Стратегія за гнучким методом\". Введіть \"Без змін\", щоб виділити проміжні етапи без наслідків.\nПерейдіть до клітинки A13, щоб отримати подальші вказівки.\n","Цілі","Проміжний етап або дія","Пріоритет","Результат",null,"<-- відсортуйте таблицю за Пріоритет і Проміжний етап або дія в порядку зростання"]
[null,"Поточні","Дія 1\nСтворення прототипу","1 – високий",null,null,"<-- додайте результат до кожного завершеного проміжного етапу. Введіть \"Без змін\", щоб виділити проміжні етапи без наслідків."]
[null,"Короткострокові","Дія 2\nДемонстрація прототипу","1 – високий"]
[null,"Поточні","Дія 6","1 – високий"]
[null,"Майбутні","Дія 7\nАутсорсинг розробки першого етапу реалізації","1 – високий"]
[null,"Завершені","Дія 9\nЕтап 1 затверджено","1 – високий","Зменшення на 10%"]
[null,"Майбутні","Дія 10","2 – середній"]
[null,"Короткострокові","Дія 8","2 – середній"]
[null,"Завершені","Дія 3","3 – низький","Без змін"]
[null,"Майбутні","Фізична активність 4","3 – низький"]
[null,"Поточні","Дія 5","3 – низький"]
["Додавайте нові елементи, вставляючи рядки в таблицю над цією лінією.\nЦе остання вказівка на цьому аркуші.","Додавайте нові елементи, вставляючи рядки над цією лінією."]

{"sheet":"Стратегія за гнучким методом","index":1,"n_rows":100,"n_cols":8,"rows_kept":100}
["На цьому аркуші наведено стратегію розвитку за гнучким методом із проміжними етапами та діями, указаними на аркуші \"Дані стратегії розвитку\". \nЗаголовок наведено в клітинці B1. \nРезультати без змін виділяються помаранчевим кольором RGB(255, 230, 210).\nЗавершені проміжні етапи або дії виділяються салатовим кольором RGB(237, 251, 219).","Стратегія за гнучким методом"]
["Заголовки діаграми наведено в клітинках B2, D2, F2 та H2. Їх поділено за такими категоріями: \"Завершені\", \"Поточні\", \"Короткострокові\" та \"Майбутні\". Редагуйте ці заголовки, щоб змінити ціль у таблиці даних на аркуші \"Дані стратегії розвитку\".\nУ цьому рядку в клітинках B3:H20 наведено проміжні етапи і дії відповідно до категорії. \nПроміжні етапи та дії вказано на аркуші \"Дані стратегії розвитку\".\nНе змінюйте та не видаляйте записи на цьому аркуші. Змініть записи в таблиці даних на аркуші \"Дані стратегії розвитку\", щоб оновити вміст на цьому аркуші.\nЦе остання вказівка на цьому аркуші.","Завершені",null,"Поточні",null,"Короткострокові",null,"Майбутні"]
[null,{"$f":"IFERROR(INDEX(Дія,SMALL(IF(Цілі=$B$2,ROW(Дія)-MIN(ROW(Дія))+1),ROWS($B$3:B3)))&\" \"&CHAR(10)&(INDEX(Результат,SMALL(IF(Цілі=$B$2,ROW(Результат)-MIN(ROW(Результат))+1),ROWS($B$3:B3))))&CHAR(10),\"\")","v":"Дія 9\nЕтап 1 затверджено \nЗменшення на 10%\n"},null,{"$f":"IFERROR(INDEX(Дія,SMALL(IF(Цілі=$D$2,ROW(Дія)-MIN(ROW(Дія))+1),ROWS($B$3:B3)))&CHAR(10),\"\")","v":"Дія 1\nСтворення прототипу\n"},null,{"$f":"IFERROR(INDEX(Дія,SMALL(IF(Цілі=$F$2,ROW(Дія)-MIN(ROW(Дія))+1),ROWS($B$3:B3)))&CHAR(10),\"\")","v":"Дія 2\nДемонстрація прототипу\n"},null,{"$f":"IFERROR(INDEX(Дія,SMALL(IF(Цілі=$H$2,ROW(Дія)-MIN(ROW(Дія))+1),ROWS($B$3:B3)))&CHAR(10),\"\")","v":"Дія 7\nАутсорсинг розробки першого етапу реалізації\n"}]
[null,{"$f":"IFERROR(INDEX(Дія,SMALL(IF(Цілі=$B$2,ROW(Дія)-MIN(ROW(Дія))+1),ROWS($B$3:B4)))&\" \"&CHAR(10)&(INDEX(Результат,SMALL(IF(Цілі=$B$2,ROW(Результат)-MIN(ROW(Результат))+1),ROWS($B$3:B4))))&CHAR(10),\"\")","v":"Дія 3 \nБез змін\n"},null,{"$f":"IFERROR(INDEX(Дія,SMALL(IF(Цілі=$D$2,ROW(Дія)-MIN(ROW(Дія))+1),ROWS($B$3:B4)))&CHAR(10),\"\")","v":"Дія 6\n"},null,{"$f":"IFERROR(INDEX(Дія,SMALL(IF(Цілі=$F$2,ROW(Дія)-MIN(ROW(Дія))+1),ROWS($B$3:B4)))&CHAR(10),\"\")","v":"Дія 8\n"},null,{"$f":"IFERROR(INDEX(Дія,SMALL(IF(Цілі=$H$2,ROW(Дія)-MIN(ROW(Дія))+1),ROWS($B$3:B4)))&CHAR(10),\"\")","v":"Дія 10\n"}]
[null,{"$f":"IFERROR(INDEX(Дія,SMALL(IF(Цілі=$B$2,ROW(Дія)-MIN(ROW(Дія))+1),ROWS($B$3:B5)))&\" \"&CHAR(10)&(INDEX(Результат,SMALL(IF(Цілі=$B$2,ROW(Результат)-MIN(ROW(Результат))+1),ROWS($B$3:B5))))&CHAR(10),\"\")","v":""},null,{"$f":"IFERROR(INDEX(Дія,SMALL(IF(Цілі=$D$2,ROW(Дія)-MIN(ROW(Дія))+1),ROWS($B$3:B5)))&CHAR(10),\"\")","v":"Дія 5\n"},null,{"$f":"IFERROR(INDEX(Дія,SMALL(IF(Цілі=$F$2,ROW(Дія)-MIN(ROW(Дія))+1),ROWS($B$3:B5)))&CHAR(10),\"\")","v":""},null,{"$f":"IFERROR(INDEX(Дія,SMALL(IF(Цілі=$H$2,ROW(Дія)-MIN(ROW(Дія))+1),ROWS($B$3:B5)))&CHAR(10),\"\")","v":"Фізична активність 4\n"}]
[null,{"$f":"IFERROR(INDEX(Дія,SMALL(IF(Цілі=$B$2,ROW(Дія)-MIN(ROW(Дія))+1),ROWS($B$3:B6)))&\" \"&CHAR(10)&(INDEX(Результат,SMALL(IF(Цілі=$B$2,ROW(Результат)-MIN(ROW(Результат))+1),ROWS($B$3:B6))))&CHAR(10),\"\")","v":""},null,{"$f":"IFERROR(INDEX(Дія,SMALL(IF(Цілі=$D$2,ROW(Дія)-MIN(ROW(Дія))+1),ROWS($B$3:B6)))&CHAR(10),\"\")","v":""},null,{"$f":"IFERROR(INDEX(Дія,SMALL(IF(Цілі=$F$2,ROW(Дія)-MIN(ROW(Дія))+1),ROWS($B$3:B6)))&CHAR(10),\"\")","v":""},null,{"$f":"IFERROR(INDEX(Дія,SMALL(IF(Цілі=$H$2,ROW(Дія)-MIN(ROW(Дія))+1),ROWS($B$3:B6)))&CHAR(10),\"\")","v":""}]
[null,{"$f":"IFERROR(INDEX(Дія,SMALL(IF(Цілі=$B$2,ROW(Дія)-MIN(ROW(Дія))+1),ROWS($B$3:B7)))&\" \"&CHAR(10)&(INDEX(Результат,SMALL(IF(Цілі=$B$2,ROW(Результат)-MIN(ROW(Результат))+1),ROWS($B$3:B7))))&CHAR(10),\"\")","v":""},null,{"$f":"IFERROR(INDEX(Дія,SMALL(IF(Цілі=$D$2,ROW(Дія)-MIN(ROW(Дія))+1),ROWS($B$3:B7)))&CHAR(10),\"\")","v":""},null,{"$f":"IFERROR(INDEX(Дія,SMALL(IF(Цілі=$F$2,ROW(Дія)-MIN(ROW(Дія))+1),ROWS($B$3:B7)))&CHAR(10),\"\")","v":""},null,{"$f":"IFERROR(INDEX(Дія,SMALL(IF(Цілі=$H$2,ROW(Дія)-MIN(ROW(Дія))+1),ROWS($B$3:B7)))&CHAR(10),\"\")","v":""}]
[null,{"$f":"IFERROR(INDEX(Дія,SMALL(IF(Цілі=$B$2,ROW(Дія)-MIN(ROW(Дія))+1),ROWS($B$3:B8)))&\" \"&CHAR(10)&(INDEX(Результат,SMALL(IF(Цілі=$B$2,ROW(Результат)-MIN(ROW(Результат))+1),ROWS($B$3:B8))))&CHAR(10),\"\")","v":""},null,{"$f":"IFERROR(INDEX(Дія,SMALL(IF(Цілі=$D$2,ROW(Дія)-MIN(ROW(Дія))+1),ROWS($B$3:B8)))&CHAR(10),\"\")","v":""},null,{"$f":"IFERROR(INDEX(Дія,SMALL(IF(Цілі=$F$2,ROW(Дія)-MIN(ROW(Дія))+1),ROWS($B$3:B8)))&CHAR(10),\"\")","v":""},null,{"$f":"IFERROR(INDEX(Дія,SMALL(IF(Цілі=$H$2,ROW(Дія)-MIN(ROW(Дія))+1),ROWS($B$3:B8)))&CHAR(10),\"\")","v":""}]
[null,{"$f":"IFERROR(INDEX(Дія,SMALL(IF(Цілі=$B$2,ROW(Дія)-MIN(ROW(Дія))+1),ROWS($B$3:B9)))&\" \"&CHAR(10)&(INDEX(Результат,SMALL(IF(Цілі=$B$2,ROW(Результат)-MIN(ROW(Результат))+1),ROWS($B$3:B9))))&CHAR(10),\"\")","v":""},null,{"$f":"IFERROR(INDEX(Дія,SMALL(IF(Цілі=$D$2,ROW(Дія)-MIN(ROW(Дія))+1),ROWS($B$3:B9)))&CHAR(10),\"\")","v":""},null,{"$f":"IFERROR(INDEX(Дія,SMALL(IF(Цілі=$F$2,ROW(Дія)-MIN(ROW(Дія))+1),ROWS($B$3:B9)))&CHAR(10),\"\")","v":""},null,{"$f":"IFERROR(INDEX(Дія,SMALL(IF(Цілі=$H$2,ROW(Дія)-MIN(ROW(Дія))+1),ROWS($B$3:B9)))&CHAR(10),\"\")","v":""}]
[null,{"$f":"IFERROR(INDEX(Дія,SMALL(IF(Цілі=$B$2,ROW(Дія)-MIN(ROW(Дія))+1),ROWS($B$3:B10)))&\" \"&CHAR(10)&(INDEX(Результат,SMALL(IF(Цілі=$B$2,ROW(Результат)-MIN(ROW(Результат))+1),ROWS($B$3:B10))))&CHAR(10),\"\")","v":""},null,{"$f":"IFERROR(INDEX(Дія,SMALL(IF(Цілі=$D$2,ROW(Дія)-MIN(ROW(Дія))+1),ROWS($B$3:B10)))&CHAR(10),\"\")","v":""},null,{"$f":"IFERROR(INDEX(Дія,SMALL(IF(Цілі=$F$2,ROW(Дія)-MIN(ROW(Дія))+1),ROWS($B$3:B10)))&CHAR(10),\"\")","v":""},null,{"$f":"IFERROR(INDEX(Дія,SMALL(IF(Цілі=$H$2,ROW(Дія)-MIN(ROW(Дія))+1),ROWS($B$3:B10)))&CHAR(10),\"\")","v":""}]
[null,{"$f":"IFERROR(INDEX(Дія,SMALL(IF(Цілі=$B$2,ROW(Дія)-MIN(ROW(Дія))+1),ROWS($B$3:B11)))&\" \"&CHAR(10)&(INDEX(Результат,SMALL(IF(Цілі=$B$2,ROW(Результат)-MIN(ROW(Результат))+1),ROWS($B$3:B11))))&CHAR(10),\"\")","v":""},null,{"$f":"IFERROR(INDEX(Дія,SMALL(IF(Цілі=$D$2,ROW(Дія)-MIN(ROW(Дія))+1),ROWS($B$3:B11)))&CHAR(10),\"\")","v":""},null,{"$f":"IFERROR(INDEX(Дія,SMALL(IF(Цілі=$F$2,ROW(Дія)-MIN(ROW(Дія))+1),ROWS($B$3:B11)))&CHAR(10),\"\")","v":""},null,{"$f":"IFERROR(INDEX(Дія,SMALL(IF(Цілі=$H$2,ROW(Дія)-MIN(ROW(Дія))+1),ROWS($B$3:B11)))&CHAR(10),\"\")","v":""}]
[null,{"$f":"IFERROR(INDEX(Дія,SMALL(IF(Цілі=$B$2,ROW(Дія)-MIN(ROW(Дія))+1),ROWS($B$3:B12)))&\" \"&CHAR(10)&(INDEX(Результат,SMALL(IF(Цілі=$B$2,ROW(Результат)-MIN(ROW(Результат))+1),ROWS($B$3:B12))))&CHAR(10),\"\")","v":""},null,{"$f":"IFERROR(INDEX(Дія,SMALL(IF(Цілі=$D$2,ROW(Дія)-MIN(ROW(Дія))+1),ROWS($B$3:B12)))&CHAR(10),\"\")","v":""},null,{"$f":"IFERROR(INDEX(Дія,SMALL(IF(Цілі=$F$2,ROW(Дія)-MIN(ROW(Дія))+1),ROWS($B$3:B12)))&CHAR(10),\"\")","v":""},null,{"$f":"IFERROR(INDEX(Дія,SMALL(IF(Цілі=$H$2,ROW(Дія)-MIN(ROW(Дія))+1),ROWS($B$3:B12)))&CHAR(10),\"\")","v":""}]
[null,{"$f":"IFERROR(INDEX(Дія,SMALL(IF(Цілі=$B$2,ROW(Дія)-MIN(ROW(Дія))+1),ROWS($B$3:B13)))&\" \"&CHAR(10)&(INDEX(Результат,SMALL(IF(Цілі=$B$2,ROW(Результат)-MIN(ROW(Результат))+1),ROWS($B$3:B13))))&CHAR(10),\"\")","v":""},null,{"$f":"IFERROR(INDEX(Дія,SMALL(IF(Цілі=$D$2,ROW(Дія)-MIN(ROW(Дія))+1),ROWS($B$3:B13)))&CHAR(10),\"\")","v":""},null,{"$f":"IFERROR(INDEX(Дія,SMALL(IF(Цілі=$F$2,ROW(Дія)-MIN(ROW(Дія))+1),ROWS($B$3:B13)))&CHAR(10),\"\")","v":""},null,{"$f":"IFERROR(INDEX(Дія,SMALL(IF(Цілі=$H$2,ROW(Дія)-MIN(ROW(Дія))+1),ROWS($B$3:B13)))&CHAR(10),\"\")","v":""}]
[null,{"$f":"IFERROR(INDEX(Дія,SMALL(IF(Цілі=$B$2,ROW(Дія)-MIN(ROW(Дія))+1),ROWS($B$3:B14)))&\" \"&CHAR(10)&(INDEX(Результат,SMALL(IF(Цілі=$B$2,ROW(Результат)-MIN(ROW(Результат))+1),ROWS($B$3:B14))))&CHAR(10),\"\")","v":""},null,{"$f":"IFERROR(INDEX(Дія,SMALL(IF(Цілі=$D$2,ROW(Дія)-MIN(ROW(Дія))+1),ROWS($B$3:B14)))&CHAR(10),\"\")","v":""},null,{"$f":"IFERROR(INDEX(Дія,SMALL(IF(Цілі=$F$2,ROW(Дія)-MIN(ROW(Дія))+1),ROWS($B$3:B14)))&CHAR(10),\"\")","v":""},null,{"$f":"IFERROR(INDEX(Дія,SMALL(IF(Цілі=$H$2,ROW(Дія)-MIN(ROW(Дія))+1),ROWS($B$3:B14)))&CHAR(10),\"\")","v":""}]
[null,{"$f":"IFERROR(INDEX(Дія,SMALL(IF(Цілі=$B$2,ROW(Дія)-MIN(ROW(Дія))+1),ROWS($B$3:B15)))&\" \"&CHAR(10)&(INDEX(Результат,SMALL(IF(Цілі=$B$2,ROW(Результат)-MIN(ROW(Результат))+1),ROWS($B$3:B15))))&CHAR(10),\"\")","v":""},null,{"$f":"IFERROR(INDEX(Дія,SMALL(IF(Цілі=$D$2,ROW(Дія)-MIN(ROW(Дія))+1),ROWS($B$3:B15)))&CHAR(10),\"\")","v":""},null,{"$f":"IFERROR(INDEX(Дія,SMALL(IF(Цілі=$F$2,ROW(Дія)-MIN(ROW(Дія))+1),ROWS($B$3:B15)))&CHAR(10),\"\")","v":""},null,{"$f":"IFERROR(INDEX(Дія,SMALL(IF(Цілі=$H$2,ROW(Дія)-MIN(ROW(Дія))+1),ROWS($B$3:B15)))&CHAR(10),\"\")","v":""}]
[null,{"$f":"IFERROR(INDEX(Дія,SMALL(IF(Цілі=$B$2,ROW(Дія)-MIN(ROW(Дія))+1),ROWS($B$3:B16)))&\" \"&CHAR(10)&(INDEX(Результат,SMALL(IF(Цілі=$B$2,ROW(Результат)-MIN(ROW(Результат))+1),ROWS($B$3:B16))))&CHAR(10),\"\")","v":""},null,{"$f":"IFERROR(INDEX(Дія,SMALL(IF(Цілі=$D$2,ROW(Дія)-MIN(ROW(Дія))+1),ROWS($B$3:B16)))&CHAR(10),\"\")","v":""},null,{"$f":"IFERROR(INDEX(Дія,SMALL(IF(Цілі=$F$2,ROW(Дія)-MIN(ROW(Дія))+1),ROWS($B$3:B16)))&CHAR(10),\"\")","v":""},null,{"$f":"IFERROR(INDEX(Дія,SMALL(IF(Цілі=$H$2,ROW(Дія)-MIN(ROW(Дія))+1),ROWS($B$3:B16)))&CHAR(10),\"\")","v":""}]
[null,{"$f":"IFERROR(INDEX(Дія,SMALL(IF(Цілі=$B$2,ROW(Дія)-MIN(ROW(Дія))+1),ROWS($B$3:B17)))&\" \"&CHAR(10)&(INDEX(Результат,SMALL(IF(Цілі=$B$2,ROW(Результат)-MIN(ROW(Результат))+1),ROWS($B$3:B17))))&CHAR(10),\"\")","v":""},null,{"$f":"IFERROR(INDEX(Дія,SMALL(IF(Цілі=$D$2,ROW(Дія)-MIN(ROW(Дія))+1),ROWS($B$3:B17)))&CHAR(10),\"\")","v":""},null,{"$f":"IFERROR(INDEX(Дія,SMALL(IF(Цілі=$F$2,ROW(Дія)-MIN(ROW(Дія))+1),ROWS($B$3:B17)))&CHAR(10),\"\")","v":""},null,{"$f":"IFERROR(INDEX(Дія,SMALL(IF(Цілі=$H$2,ROW(Дія)-MIN(ROW(Дія))+1),ROWS($B$3:B17)))&CHAR(10),\"\")","v":""}]
[null,{"$f":"IFERROR(INDEX(Дія,SMALL(IF(Цілі=$B$2,ROW(Дія)-MIN(ROW(Дія))+1),ROWS($B$3:B18)))&\" \"&CHAR(10)&(INDEX(Результат,SMALL(IF(Цілі=$B$2,ROW(Результат)-MIN(ROW(Результат))+1),ROWS($B$3:B18))))&CHAR(10),\"\")","v":""},null,{"$f":"IFERROR(INDEX(Дія,SMALL(IF(Цілі=$D$2,ROW(Дія)-MIN(ROW(Дія))+1),ROWS($B$3:B18)))&CHAR(10),\"\")","v":""},null,{"$f":"IFERROR(INDEX(Дія,SMALL(IF(Цілі=$F$2,ROW(Дія)-MIN(ROW(Дія))+1),ROWS($B$3:B18)))&CHAR(10),\"\")","v":""},null,{"$f":"IFERROR(INDEX(Дія,SMALL(IF(Цілі=$H$2,ROW(Дія)-MIN(ROW(Дія))+1),ROWS($B$3:B18)))&CHAR(10),\"\")","v":""}]
[null,{"$f":"IFERROR(INDEX(Дія,SMALL(IF(Цілі=$B$2,ROW(Дія)-MIN(ROW(Дія))+1),ROWS($B$3:B19)))&\" \"&CHAR(10)&(INDEX(Результат,SMALL(IF(Цілі=$B$2,ROW(Результат)-MIN(ROW(Результат))+1),ROWS($B$3:B19))))&CHAR(10),\"\")","v":""},null,{"$f":"IFERROR(INDEX(Дія,SMALL(IF(Цілі=$D$2,ROW(Дія)-MIN(ROW(Дія))+1),ROWS($B$3:B19)))&CHAR(10),\"\")","v":""},null,{"$f":"IFERROR(INDEX(Дія,SMALL(IF(Цілі=$F$2,ROW(Дія)-MIN(ROW(Дія))+1),ROWS($B$3:B19)))&CHAR(10),\"\")","v":""},null,{"$f":"IFERROR(INDEX(Дія,SMALL(IF(Цілі=$H$2,ROW(Дія)-MIN(ROW(Дія))+1),ROWS($B$3:B19)))&CHAR(10),\"\")","v":""}]
[null,{"$f":"IFERROR(INDEX(Дія,SMALL(IF(Цілі=$B$2,ROW(Дія)-MIN(ROW(Дія))+1),ROWS($B$3:B20)))&\" \"&CHAR(10)&(INDEX(Результат,SMALL(IF(Цілі=$B$2,ROW(Результат)-MIN(ROW(Результат))+1),ROWS($B$3:B20))))&CHAR(10),\"\")","v":""},null,{"$f":"IFERROR(INDEX(Дія,SMALL(IF(Цілі=$D$2,ROW(Дія)-MIN(ROW(Дія))+1),ROWS($B$3:B20)))&CHAR(10),\"\")","v":""},null,{"$f":"IFERROR(INDEX(Дія,SMALL(IF(Цілі=$F$2,ROW(Дія)-MIN(ROW(Дія))+1),ROWS($B$3:B20)))&CHAR(10),\"\")","v":""},null,{"$f":"IFERROR(INDEX(Дія,SMALL(IF(Цілі=$H$2,ROW(Дія)-MIN(ROW(Дія))+1),ROWS($B$3:B20)))&CHAR(10),\"\")","v":""}]
[null,{"$f":"IFERROR(INDEX(Дія,SMALL(IF(Цілі=$B$2,ROW(Дія)-MIN(ROW(Дія))+1),ROWS($B$3:B21)))&\" \"&CHAR(10)&(INDEX(Результат,SMALL(IF(Цілі=$B$2,ROW(Результат)-MIN(ROW(Результат))+1),ROWS($B$3:B21))))&CHAR(10),\"\")","v":""},null,{"$f":"IFERROR(INDEX(Дія,SMALL(IF(Цілі=$D$2,ROW(Дія)-MIN(ROW(Дія))+1),ROWS($B$3:B21)))&CHAR(10),\"\")","v":""},null,{"$f":"IFERROR(INDEX(Дія,SMALL(IF(Цілі=$F$2,ROW(Дія)-MIN(ROW(Дія))+1),ROWS($B$3:B21)))&CHAR(10),\"\")","v":""},null,{"$f":"IFERROR(INDEX(Дія,SMALL(IF(Цілі=$H$2,ROW(Дія)-MIN(ROW(Дія))+1),ROWS($B$3:B21)))&CHAR(10),\"\")","v":""}]
[null,{"$f":"IFERROR(INDEX(Дія,SMALL(IF(Цілі=$B$2,ROW(Дія)-MIN(ROW(Дія))+1),ROWS($B$3:B22)))&\" \"&CHAR(10)&(INDEX(Результат,SMALL(IF(Цілі=$B$2,ROW(Результат)-MIN(ROW(Результат))+1),ROWS($B$3:B22))))&CHAR(10),\"\")","v":""},null,{"$f":"IFERROR(INDEX(Дія,SMALL(IF(Цілі=$D$2,ROW(Дія)-MIN(ROW(Дія))+1),ROWS($B$3:B22)))&CHAR(10),\"\")","v":""},null,{"$f":"IFERROR(INDEX(Дія,SMALL(IF(Цілі=$F$2,ROW(Дія)-MIN(ROW(Дія))+1),ROWS($B$3:B22)))&CHAR(10),\"\")","v":""},null,{"$f":"IFERROR(INDEX(Дія,SMALL(IF(Цілі=$H$2,ROW(Дія)-MIN(ROW(Дія))+1),ROWS($B$3:B22)))&CHAR(10),\"\")","v":""}]
[null,{"$f":"IFERROR(INDEX(Дія,SMALL(IF(Цілі=$B$2,ROW(Дія)-MIN(ROW(Дія))+1),ROWS($B$3:B23)))&\" \"&CHAR(10)&(INDEX(Результат,SMALL(IF(Цілі=$B$2,ROW(Результат)-MIN(ROW(Результат))+1),ROWS($B$3:B23))))&CHAR(10),\"\")","v":""},null,{"$f":"IFERROR(INDEX(Дія,SMALL(IF(Цілі=$D$2,ROW(Дія)-MIN(ROW(Дія))+1),ROWS($B$3:B23)))&CHAR(10),\"\")","v":""},null,{"$f":"IFERROR(INDEX(Дія,SMALL(IF(Цілі=$F$2,ROW(Дія)-MIN(ROW(Дія))+1),ROWS($B$3:B23)))&CHAR(10),\"\")","v":""},null,{"$f":"IFERROR(INDEX(Дія,SMALL(IF(Цілі=$H$2,ROW(Дія)-MIN(ROW(Дія))+1),ROWS($B$3:B23)))&CHAR(10),\"\")","v":""}]
[null,{"$f":"IFERROR(INDEX(Дія,SMALL(IF(Цілі=$B$2,ROW(Дія)-MIN(ROW(Дія))+1),ROWS($B$3:B24)))&\" \"&CHAR(10)&(INDEX(Результат,SMALL(IF(Цілі=$B$2,ROW(Результат)-MIN(ROW(Результат))+1),ROWS($B$3:B24))))&CHAR(10),\"\")","v":""},null,{"$f":"IFERROR(INDEX(Дія,SMALL(IF(Цілі=$D$2,ROW(Дія)-MIN(ROW(Дія))+1),ROWS($B$3:B24)))&CHAR(10),\"\")","v":""},null,{"$f":"IFERROR(INDEX(Дія,SMALL(IF(Цілі=$F$2,ROW(Дія)-MIN(ROW(Дія))+1),ROWS($B$3:B24)))&CHAR(10),\"\")","v":""},null,{"$f":"IFERROR(INDEX(Дія,SMALL(IF(Цілі=$H$2,ROW(Дія)-MIN(ROW(Дія))+1),ROWS($B$3:B24)))&CHAR(10),\"\")","v":""}]
[null,{"$f":"IFERROR(INDEX(Дія,SMALL(IF(Цілі=$B$2,ROW(Дія)-MIN(ROW(Дія))+1),ROWS($B$3:B25)))&\" \"&CHAR(10)&(INDEX(Результат,SMALL(IF(Цілі=$B$2,ROW(Результат)-MIN(ROW(Результат))+1),ROWS($B$3:B25))))&CHAR(10),\"\")","v":""},null,{"$f":"IFERROR(INDEX(Дія,SMALL(IF(Цілі=$D$2,ROW(Дія)-MIN(ROW(Дія))+1),ROWS($B$3:B25)))&CHAR(10),\"\")","v":""},null,{"$f":"IFERROR(INDEX(Дія,SMALL(IF(Цілі=$F$2,ROW(Дія)-MIN(ROW(Дія))+1),ROWS($B$3:B25)))&CHAR(10),\"\")","v":""},null,{"$f":"IFERROR(INDEX(Дія,SMALL(IF(Цілі=$H$2,ROW(Дія)-MIN(ROW(Дія))+1),ROWS($B$3:B25)))&CHAR(10),\"\")","v":""}]
[null,{"$f":"IFERROR(INDEX(Дія,SMALL(IF(Цілі=$B$2,ROW(Дія)-MIN(ROW(Дія))+1),ROWS($B$3:B26)))&\" \"&CHAR(10)&(INDEX(Результат,SMALL(IF(Цілі=$B$2,ROW(Результат)-MIN(ROW(Результат))+1),ROWS($B$3:B26))))&CHAR(10),\"\")","v":""},null,{"$f":"IFERROR(INDEX(Дія,SMALL(IF(Цілі=$D$2,ROW(Дія)-MIN(ROW(Дія))+1),ROWS($B$3:B26)))&CHAR(10),\"\")","v":""},null,{"$f":"IFERROR(INDEX(Дія,SMALL(IF(Цілі=$F$2,ROW(Дія)-MIN(ROW(Дія))+1),ROWS($B$3:B26)))&CHAR(10),\"\")","v":""},null,{"$f":"IFERROR(INDEX(Дія,SMALL(IF(Цілі=$H$2,ROW(Дія)-MIN(ROW(Дія))+1),ROWS($B$3:B26)))&CHAR(10),\"\")","v":""}]
[null,{"$f":"IFERROR(INDEX(Дія,SMALL(IF(Цілі=$B$2,ROW(Дія)-MIN(ROW(Дія))+1),ROWS($B$3:B27)))&\" \"&CHAR(10)&(INDEX(Результат,SMALL(IF(Цілі=$B$2,ROW(Результат)-MIN(ROW(Результат))+1),ROWS($B$3:B27))))&CHAR(10),\"\")","v":""},null,{"$f":"IFERROR(INDEX(Дія,SMALL(IF(Цілі=$D$2,ROW(Дія)-MIN(ROW(Дія))+1),ROWS($B$3:B27)))&CHAR(10),\"\")","v":""},null,{"$f":"IFERROR(INDEX(Дія,SMALL(IF(Цілі=$F$2,ROW(Дія)-MIN(ROW(Дія))+1),ROWS($B$3:B27)))&CHAR(10),\"\")","v":""},null,{"$f":"IFERROR(INDEX(Дія,SMALL(IF(Цілі=$H$2,ROW(Дія)-MIN(ROW(Дія))+1),ROWS($B$3:B27)))&CHAR(10),\"\")","v":""}]
[null,{"$f":"IFERROR(INDEX(Дія,SMALL(IF(Цілі=$B$2,ROW(Дія)-MIN(ROW(Дія))+1),ROWS($B$3:B28)))&\" \"&CHAR(10)&(INDEX(Результат,SMALL(IF(Цілі=$B$2,ROW(Результат)-MIN(ROW(Результат))+1),ROWS($B$3:B28))))&CHAR(10),\"\")","v":""},null,{"$f":"IFERROR(INDEX(Дія,SMALL(IF(Цілі=$D$2,ROW(Дія)-MIN(ROW(Дія))+1),ROWS($B$3:B28)))&CHAR(10),\"\")","v":""},null,{"$f":"IFERROR(INDEX(Дія,SMALL(IF(Цілі=$F$2,ROW(Дія)-MIN(ROW(Дія))+1),ROWS($B$3:B28)))&CHAR(10),\"\")","v":""},null,{"$f":"IFERROR(INDEX(Дія,SMALL(IF(Цілі=$H$2,ROW(Дія)-MIN(ROW(Дія))+1),ROWS($B$3:B28)))&CHAR(10),\"\")","v":""}]
[null,{"$f":"IFERROR(INDEX(Дія,SMALL(IF(Цілі=$B$2,ROW(Дія)-MIN(ROW(Дія))+1),ROWS($B$3:B29)))&\" \"&CHAR(10)&(INDEX(Результат,SMALL(IF(Цілі=$B$2,ROW(Результат)-MIN(ROW(Результат))+1),ROWS($B$3:B29))))&CHAR(10),\"\")","v":""},null,{"$f":"IFERROR(INDEX(Дія,SMALL(IF(Цілі=$D$2,ROW(Дія)-MIN(ROW(Дія))+1),ROWS($B$3:B29)))&CHAR(10),\"\")","v":""},null,{"$f":"IFERROR(INDEX(Дія,SMALL(IF(Цілі=$F$2,ROW(Дія)-MIN(ROW(Дія))+1),ROWS($B$3:B29)))&CHAR(10),\"\")","v":""},null,{"$f":"IFERROR(INDEX(Дія,SMALL(IF(Цілі=$H$2,ROW(Дія)-MIN(ROW(Дія))+1),ROWS($B$3:B29)))&CHAR(10),\"\")","v":""}]
[null,{"$f":"IFERROR(INDEX(Дія,SMALL(IF(Цілі=$B$2,ROW(Дія)-MIN(ROW(Дія))+1),ROWS($B$3:B30)))&\" \"&CHAR(10)&(INDEX(Результат,SMALL(IF(Цілі=$B$2,ROW(Результат)-MIN(ROW(Результат))+1),ROWS($B$3:B30))))&CHAR(10),\"\")","v":""},null,{"$f":"IFERROR(INDEX(Дія,SMALL(IF(Цілі=$D$2,ROW(Дія)-MIN(ROW(Дія))+1),ROWS($B$3:B30)))&CHAR(10),\"\")","v":""},null,{"$f":"IFERROR(INDEX(Дія,SMALL(IF(Цілі=$F$2,ROW(Дія)-MIN(ROW(Дія))+1),ROWS($B$3:B30)))&CHAR(10),\"\")","v":""},null,{"$f":"IFERROR(INDEX(Дія,SMALL(IF(Цілі=$H$2,ROW(Дія)-MIN(ROW(Дія))+1),ROWS($B$3:B30)))&CHAR(10),\"\")","v":""}]
[null,{"$f":"IFERROR(INDEX(Дія,SMALL(IF(Цілі=$B$2,ROW(Дія)-MIN(ROW(Дія))+1),ROWS($B$3:B31)))&\" \"&CHAR(10)&(INDEX(Результат,SMALL(IF(Цілі=$B$2,ROW(Результат)-MIN(ROW(Результат))+1),ROWS($B$3:B31))))&CHAR(10),\"\")","v":""},null,{"$f":"IFERROR(INDEX(Дія,SMALL(IF(Цілі=$D$2,ROW(Дія)-MIN(ROW(Дія))+1),ROWS($B$3:B31)))&CHAR(10),\"\")","v":""},null,{"$f":"IFERROR(INDEX(Дія,SMALL(IF(Цілі=$F$2,ROW(Дія)-MIN(ROW(Дія))+1),ROWS($B$3:B31)))&CHAR(10),\"\")","v":""},null,{"$f":"IFERROR(INDEX(Дія,SMALL(IF(Цілі=$H$2,ROW(Дія)-MIN(ROW(Дія))+1),ROWS($B$3:B31)))&CHAR(10),\"\")","v":""}]
[null,{"$f":"IFERROR(INDEX(Дія,SMALL(IF(Цілі=$B$2,ROW(Дія)-MIN(ROW(Дія))+1),ROWS($B$3:B32)))&\" \"&CHAR(10)&(INDEX(Результат,SMALL(IF(Цілі=$B$2,ROW(Результат)-MIN(ROW(Результат))+1),ROWS($B$3:B32))))&CHAR(10),\"\")","v":""},null,{"$f":"IFERROR(INDEX(Дія,SMALL(IF(Цілі=$D$2,ROW(Дія)-MIN(ROW(Дія))+1),ROWS($B$3:B32)))&CHAR(10),\"\")","v":""},null,{"$f":"IFERROR(INDEX(Дія,SMALL(IF(Цілі=$F$2,ROW(Дія)-MIN(ROW(Дія))+1),ROWS($B$3:B32)))&CHAR(10),\"\")","v":""},null,{"$f":"IFERROR(INDEX(Дія,SMALL(IF(Цілі=$H$2,ROW(Дія)-MIN(ROW(Дія))+1),ROWS($B$3:B32)))&CHAR(10),\"\")","v":""}]
[null,{"$f":"IFERROR(INDEX(Дія,SMALL(IF(Цілі=$B$2,ROW(Дія)-MIN(ROW(Дія))+1),ROWS($B$3:B33)))&\" \"&CHAR(10)&(INDEX(Результат,SMALL(IF(Цілі=$B$2,ROW(Результат)-MIN(ROW(Результат))+1),ROWS($B$3:B33))))&CHAR(10),\"\")","v":""},null,{"$f":"IFERROR(INDEX(Дія,SMALL(IF(Цілі=$D$2,ROW(Дія)-MIN(ROW(Дія))+1),ROWS($B$3:B33)))&CHAR(10),\"\")","v":""},null,{"$f":"IFERROR(INDEX(Дія,SMALL(IF(Цілі=$F$2,ROW(Дія)-MIN(ROW(Дія))+1),ROWS($B$3:B33)))&CHAR(10),\"\")","v":""},null,{"$f":"IFERROR(INDEX(Дія,SMALL(IF(Цілі=$H$2,ROW(Дія)-MIN(ROW(Дія))+1),ROWS($B$3:B33)))&CHAR(10),\"\")","v":""}]
[null,{"$f":"IFERROR(INDEX(Дія,SMALL(IF(Цілі=$B$2,ROW(Дія)-MIN(ROW(Дія))+1),ROWS($B$3:B34)))&\" \"&CHAR(10)&(INDEX(Результат,SMALL(IF(Цілі=$B$2,ROW(Результат)-MIN(ROW(Результат))+1),ROWS($B$3:B34))))&CHAR(10),\"\")","v":""},null,{"$f":"IFERROR(INDEX(Дія,SMALL(IF(Цілі=$D$2,ROW(Дія)-MIN(ROW(Дія))+1),ROWS($B$3:B34)))&CHAR(10),\"\")","v":""},null,{"$f":"IFERROR(INDEX(Дія,SMALL(IF(Цілі=$F$2,ROW(Дія)-MIN(ROW(Дія))+1),ROWS($B$3:B34)))&CHAR(10),\"\")","v":""},null,{"$f":"IFERROR(INDEX(Дія,SMALL(IF(Цілі=$H$2,ROW(Дія)-MIN(ROW(Дія))+1),ROWS($B$3:B34)))&CHAR(10),\"\")","v":""}]
[null,{"$f":"IFERROR(INDEX(Дія,SMALL(IF(Цілі=$B$2,ROW(Дія)-MIN(ROW(Дія))+1),ROWS($B$3:B35)))&\" \"&CHAR(10)&(INDEX(Результат,SMALL(IF(Цілі=$B$2,ROW(Результат)-MIN(ROW(Результат))+1),ROWS($B$3:B35))))&CHAR(10),\"\")","v":""},null,{"$f":"IFERROR(INDEX(Дія,SMALL(IF(Цілі=$D$2,ROW(Дія)-MIN(ROW(Дія))+1),ROWS($B$3:B35)))&CHAR(10),\"\")","v":""},null,{"$f":"IFERROR(INDEX(Дія,SMALL(IF(Цілі=$F$2,ROW(Дія)-MIN(ROW(Дія))+1),ROWS($B$3:B35)))&CHAR(10),\"\")","v":""},null,{"$f":"IFERROR(INDEX(Дія,SMALL(IF(Цілі=$H$2,ROW(Дія)-MIN(ROW(Дія))+1),ROWS($B$3:B35)))&CHAR(10),\"\")","v":""}]
[null,{"$f":"IFERROR(INDEX(Дія,SMALL(IF(Цілі=$B$2,ROW(Дія)-MIN(ROW(Дія))+1),ROWS($B$3:B36)))&\" \"&CHAR(10)&(INDEX(Результат,SMALL(IF(Цілі=$B$2,ROW(Результат)-MIN(ROW(Результат))+1),ROWS($B$3:B36))))&CHAR(10),\"\")","v":""},null,{"$f":"IFERROR(INDEX(Дія,SMALL(IF(Цілі=$D$2,ROW(Дія)-MIN(ROW(Дія))+1),ROWS($B$3:B36)))&CHAR(10),\"\")","v":""},null,{"$f":"IFERROR(INDEX(Дія,SMALL(IF(Цілі=$F$2,ROW(Дія)-MIN(ROW(Дія))+1),ROWS($B$3:B36)))&CHAR(10),\"\")","v":""},null,{"$f":"IFERROR(INDEX(Дія,SMALL(IF(Цілі=$H$2,ROW(Дія)-MIN(ROW(Дія))+1),ROWS($B$3:B36)))&CHAR(10),\"\")","v":""}]
[null,{"$f":"IFERROR(INDEX(Дія,SMALL(IF(Цілі=$B$2,ROW(Дія)-MIN(ROW(Дія))+1),ROWS($B$3:B37)))&\" \"&CHAR(10)&(INDEX(Результат,SMALL(IF(Цілі=$B$2,ROW(Результат)-MIN(ROW(Результат))+1),ROWS($B$3:B37))))&CHAR(10),\"\")","v":""},null,{"$f":"IFERROR(INDEX(Дія,SMALL(IF(Цілі=$D$2,ROW(Дія)-MIN(ROW(Дія))+1),ROWS($B$3:B37)))&CHAR(10),\"\")","v":""},null,{"$f":"IFERROR(INDEX(Дія,SMALL(IF(Цілі=$F$2,ROW(Дія)-MIN(ROW(Дія))+1),ROWS($B$3:B37)))&CHAR(10),\"\")","v":""},null,{"$f":"IFERROR(INDEX(Дія,SMALL(IF(Цілі=$H$2,ROW(Дія)-MIN(ROW(Дія))+1),ROWS($B$3:B37)))&CHAR(10),\"\")","v":""}]
[null,{"$f":"IFERROR(INDEX(Дія,SMALL(IF(Цілі=$B$2,ROW(Дія)-MIN(ROW(Дія))+1),ROWS($B$3:B38)))&\" \"&CHAR(10)&(INDEX(Результат,SMALL(IF(Цілі=$B$2,ROW(Результат)-MIN(ROW(Результат))+1),ROWS($B$3:B38))))&CHAR(10),\"\")","v":""},null,{"$f":"IFERROR(INDEX(Дія,SMALL(IF(Цілі=$D$2,ROW(Дія)-MIN(ROW(Дія))+1),ROWS($B$3:B38)))&CHAR(10),\"\")","v":""},null,{"$f":"IFERROR(INDEX(Дія,SMALL(IF(Цілі=$F$2,ROW(Дія)-MIN(ROW(Дія))+1),ROWS($B$3:B38)))&CHAR(10),\"\")","v":""},null,{"$f":"IFERROR(INDEX(Дія,SMALL(IF(Цілі=$H$2,ROW(Дія)-MIN(ROW(Дія))+1),ROWS($B$3:B38)))&CHAR(10),\"\")","v":""}]
[null,{"$f":"IFERROR(INDEX(Дія,SMALL(IF(Цілі=$B$2,ROW(Дія)-MIN(ROW(Дія))+1),ROWS($B$3:B39)))&\" \"&CHAR(10)&(INDEX(Результат,SMALL(IF(Цілі=$B$2,ROW(Результат)-MIN(ROW(Результат))+1),ROWS($B$3:B39))))&CHAR(10),\"\")","v":""},null,{"$f":"IFERROR(INDEX(Дія,SMALL(IF(Цілі=$D$2,ROW(Дія)-MIN(ROW(Дія))+1),ROWS($B$3:B39)))&CHAR(10),\"\")","v":""},null,{"$f":"IFERROR(INDEX(Дія,SMALL(IF(Цілі=$F$2,ROW(Дія)-MIN(ROW(Дія))+1),ROWS($B$3:B39)))&CHAR(10),\"\")","v":""},null,{"$f":"IFERROR(INDEX(Дія,SMALL(IF(Цілі=$H$2,ROW(Дія)-MIN(ROW(Дія))+1),ROWS($B$3:B39)))&CHAR(10),\"\")","v":""}]
[null,{"$f":"IFERROR(INDEX(Дія,SMALL(IF(Цілі=$B$2,ROW(Дія)-MIN(ROW(Дія))+1),ROWS($B$3:B40)))&\" \"&CHAR(10)&(INDEX(Результат,SMALL(IF(Цілі=$B$2,ROW(Результат)-MIN(ROW(Результат))+1),ROWS($B$3:B40))))&CHAR(10),\"\")","v":""},null,{"$f":"IFERROR(INDEX(Дія,SMALL(IF(Цілі=$D$2,ROW(Дія)-MIN(ROW(Дія))+1),ROWS($B$3:B40)))&CHAR(10),\"\")","v":""},null,{"$f":"IFERROR(INDEX(Дія,SMALL(IF(Цілі=$F$2,ROW(Дія)-MIN(ROW(Дія))+1),ROWS($B$3:B40)))&CHAR(10),\"\")","v":""},null,{"$f":"IFERROR(INDEX(Дія,SMALL(IF(Цілі=$H$2,ROW(Дія)-MIN(ROW(Дія))+1),ROWS($B$3:B40)))&CHAR(10),\"\")","v":""}]
[null,{"$f":"IFERROR(INDEX(Дія,SMALL(IF(Цілі=$B$2,ROW(Дія)-MIN(ROW(Дія))+1),ROWS($B$3:B41)))&\" \"&CHAR(10)&(INDEX(Результат,SMALL(IF(Цілі=$B$2,ROW(Результат)-MIN(ROW(Результат))+1),ROWS($B$3:B41))))&CHAR(10),\"\")","v":""},null,{"$f":"IFERROR(INDEX(Дія,SMALL(IF(Цілі=$D$2,ROW(Дія)-MIN(ROW(Дія))+1),ROWS($B$3:B41)))&CHAR(10),\"\")","v":""},null,{"$f":"IFERROR(INDEX(Дія,SMALL(IF(Цілі=$F$2,ROW(Дія)-MIN(ROW(Дія))+1),ROWS($B$3:B41)))&CHAR(10),\"\")","v":""},null,{"$f":"IFERROR(INDEX(Дія,SMALL(IF(Цілі=$H$2,ROW(Дія)-MIN(ROW(Дія))+1),ROWS($B$3:B41)))&CHAR(10),\"\")","v":""}]
[null,{"$f":"IFERROR(INDEX(Дія,SMALL(IF(Цілі=$B$2,ROW(Дія)-MIN(ROW(Дія))+1),ROWS($B$3:B42)))&\" \"&CHAR(10)&(INDEX(Результат,SMALL(IF(Цілі=$B$2,ROW(Результат)-MIN(ROW(Результат))+1),ROWS($B$3:B42))))&CHAR(10),\"\")","v":""},null,{"$f":"IFERROR(INDEX(Дія,SMALL(IF(Цілі=$D$2,ROW(Дія)-MIN(ROW(Дія))+1),ROWS($B$3:B42)))&CHAR(10),\"\")","v":""},null,{"$f":"IFERROR(INDEX(Дія,SMALL(IF(Цілі=$F$2,ROW(Дія)-MIN(ROW(Дія))+1),ROWS($B$3:B42)))&CHAR(10),\"\")","v":""},null,{"$f":"IFERROR(INDEX(Дія,SMALL(IF(Цілі=$H$2,ROW(Дія)-MIN(ROW(Дія))+1),ROWS($B$3:B42)))&CHAR(10),\"\")","v":""}]
[null,{"$f":"IFERROR(INDEX(Дія,SMALL(IF(Цілі=$B$2,ROW(Дія)-MIN(ROW(Дія))+1),ROWS($B$3:B43)))&\" \"&CHAR(10)&(INDEX(Результат,SMALL(IF(Цілі=$B$2,ROW(Результат)-MIN(ROW(Результат))+1),ROWS($B$3:B43))))&CHAR(10),\"\")","v":""},null,{"$f":"IFERROR(INDEX(Дія,SMALL(IF(Цілі=$D$2,ROW(Дія)-MIN(ROW(Дія))+1),ROWS($B$3:B43)))&CHAR(10),\"\")","v":""},null,{"$f":"IFERROR(INDEX(Дія,SMALL(IF(Цілі=$F$2,ROW(Дія)-MIN(ROW(Дія))+1),ROWS($B$3:B43)))&CHAR(10),\"\")","v":""},null,{"$f":"IFERROR(INDEX(Дія,SMALL(IF(Цілі=$H$2,ROW(Дія)-MIN(ROW(Дія))+1),ROWS($B$3:B43)))&CHAR(10),\"\")","v":""}]
[null,{"$f":"IFERROR(INDEX(Дія,SMALL(IF(Цілі=$B$2,ROW(Дія)-MIN(ROW(Дія))+1),ROWS($B$3:B44)))&\" \"&CHAR(10)&(INDEX(Результат,SMALL(IF(Цілі=$B$2,ROW(Результат)-MIN(ROW(Результат))+1),ROWS($B$3:B44))))&CHAR(10),\"\")","v":""},null,{"$f":"IFERROR(INDEX(Дія,SMALL(IF(Цілі=$D$2,ROW(Дія)-MIN(ROW(Дія))+1),ROWS($B$3:B44)))&CHAR(10),\"\")","v":""},null,{"$f":"IFERROR(INDEX(Дія,SMALL(IF(Цілі=$F$2,ROW(Дія)-MIN(ROW(Дія))+1),ROWS($B$3:B44)))&CHAR(10),\"\")","v":""},null,{"$f":"IFERROR(INDEX(Дія,SMALL(IF(Цілі=$H$2,ROW(Дія)-MIN(ROW(Дія))+1),ROWS($B$3:B44)))&CHAR(10),\"\")","v":""}]
[null,{"$f":"IFERROR(INDEX(Дія,SMALL(IF(Цілі=$B$2,ROW(Дія)-MIN(ROW(Дія))+1),ROWS($B$3:B45)))&\" \"&CHAR(10)&(INDEX(Результат,SMALL(IF(Цілі=$B$2,ROW(Результат)-MIN(ROW(Результат))+1),ROWS($B$3:B45))))&CHAR(10),\"\")","v":""},null,{"$f":"IFERROR(INDEX(Дія,SMALL(IF(Цілі=$D$2,ROW(Дія)-MIN(ROW(Дія))+1),ROWS($B$3:B45)))&CHAR(10),\"\")","v":""},null,{"$f":"IFERROR(INDEX(Дія,SMALL(IF(Цілі=$F$2,ROW(Дія)-MIN(ROW(Дія))+1),ROWS($B$3:B45)))&CHAR(10),\"\")","v":""},null,{"$f":"IFERROR(INDEX(Дія,SMALL(IF(Цілі=$H$2,ROW(Дія)-MIN(ROW(Дія))+1),ROWS($B$3:B45)))&CHAR(10),\"\")","v":""}]
[null,{"$f":"IFERROR(INDEX(Дія,SMALL(IF(Цілі=$B$2,ROW(Дія)-MIN(ROW(Дія))+1),ROWS($B$3:B46)))&\" \"&CHAR(10)&(INDEX(Результат,SMALL(IF(Цілі=$B$2,ROW(Результат)-MIN(ROW(Результат))+1),ROWS($B$3:B46))))&CHAR(10),\"\")","v":""},null,{"$f":"IFERROR(INDEX(Дія,SMALL(IF(Цілі=$D$2,ROW(Дія)-MIN(ROW(Дія))+1),ROWS($B$3:B46)))&CHAR(10),\"\")","v":""},null,{"$f":"IFERROR(INDEX(Дія,SMALL(IF(Цілі=$F$2,ROW(Дія)-MIN(ROW(Дія))+1),ROWS($B$3:B46)))&CHAR(10),\"\")","v":""},null,{"$f":"IFERROR(INDEX(Дія,SMALL(IF(Цілі=$H$2,ROW(Дія)-MIN(ROW(Дія))+1),ROWS($B$3:B46)))&CHAR(10),\"\")","v":""}]
[null,{"$f":"IFERROR(INDEX(Дія,SMALL(IF(Цілі=$B$2,ROW(Дія)-MIN(ROW(Дія))+1),ROWS($B$3:B47)))&\" \"&CHAR(10)&(INDEX(Результат,SMALL(IF(Цілі=$B$2,ROW(Результат)-MIN(ROW(Результат))+1),ROWS($B$3:B47))))&CHAR(10),\"\")","v":""},null,{"$f":"IFERROR(INDEX(Дія,SMALL(IF(Цілі=$D$2,ROW(Дія)-MIN(ROW(Дія))+1),ROWS($B$3:B47)))&CHAR(10),\"\")","v":""},null,{"$f":"IFERROR(INDEX(Дія,SMALL(IF(Цілі=$F$2,ROW(Дія)-MIN(ROW(Дія))+1),ROWS($B$3:B47)))&CHAR(10),\"\")","v":""},null,{"$f":"IFERROR(INDEX(Дія,SMALL(IF(Цілі=$H$2,ROW(Дія)-MIN(ROW(Дія))+1),ROWS($B$3:B47)))&CHAR(10),\"\")","v":""}]
[null,{"$f":"IFERROR(INDEX(Дія,SMALL(IF(Цілі=$B$2,ROW(Дія)-MIN(ROW(Дія))+1),ROWS($B$3:B48)))&\" \"&CHAR(10)&(INDEX(Результат,SMALL(IF(Цілі=$B$2,ROW(Результат)-MIN(ROW(Результат))+1),ROWS($B$3:B48))))&CHAR(10),\"\")","v":""},null,{"$f":"IFERROR(INDEX(Дія,SMALL(IF(Цілі=$D$2,ROW(Дія)-MIN(ROW(Дія))+1),ROWS($B$3:B48)))&CHAR(10),\"\")","v":""},null,{"$f":"IFERROR(INDEX(Дія,SMALL(IF(Цілі=$F$2,ROW(Дія)-MIN(ROW(Дія))+1),ROWS($B$3:B48)))&CHAR(10),\"\")","v":""},null,{"$f":"IFERROR(INDEX(Дія,SMALL(IF(Цілі=$H$2,ROW(Дія)-MIN(ROW(Дія))+1),ROWS($B$3:B48)))&CHAR(10),\"\")","v":""}]
[null,{"$f":"IFERROR(INDEX(Дія,SMALL(IF(Цілі=$B$2,ROW(Дія)-MIN(ROW(Дія))+1),ROWS($B$3:B49)))&\" \"&CHAR(10)&(INDEX(Результат,SMALL(IF(Цілі=$B$2,ROW(Результат)-MIN(ROW(Результат))+1),ROWS($B$3:B49))))&CHAR(10),\"\")","v":""},null,{"$f":"IFERROR(INDEX(Дія,SMALL(IF(Цілі=$D$2,ROW(Дія)-MIN(ROW(Дія))+1),ROWS($B$3:B49)))&CHAR(10),\"\")","v":""},null,{"$f":"IFERROR(INDEX(Дія,SMALL(IF(Цілі=$F$2,ROW(Дія)-MIN(ROW(Дія))+1),ROWS($B$3:B49)))&CHAR(10),\"\")","v":""},null,{"$f":"IFERROR(INDEX(Дія,SMALL(IF(Цілі=$H$2,ROW(Дія)-MIN(ROW(Дія))+1),ROWS($B$3:B49)))&CHAR(10),\"\")","v":""}]
[null,{"$f":"IFERROR(INDEX(Дія,SMALL(IF(Цілі=$B$2,ROW(Дія)-MIN(ROW(Дія))+1),ROWS($B$3:B50)))&\" \"&CHAR(10)&(INDEX(Результат,SMALL(IF(Цілі=$B$2,ROW(Результат)-MIN(ROW(Результат))+1),ROWS($B$3:B50))))&CHAR(10),\"\")","v":""},null,{"$f":"IFERROR(INDEX(Дія,SMALL(IF(Цілі=$D$2,ROW(Дія)-MIN(ROW(Дія))+1),ROWS($B$3:B50)))&CHAR(10),\"\")","v":""},null,{"$f":"IFERROR(INDEX(Дія,SMALL(IF(Цілі=$F$2,ROW(Дія)-MIN(ROW(Дія))+1),ROWS($B$3:B50)))&CHAR(10),\"\")","v":""},null,{"$f":"IFERROR(INDEX(Дія,SMALL(IF(Цілі=$H$2,ROW(Дія)-MIN(ROW(Дія))+1),ROWS($B$3:B50)))&CHAR(10),\"\")","v":""}]
[null,{"$f":"IFERROR(INDEX(Дія,SMALL(IF(Цілі=$B$2,ROW(Дія)-MIN(ROW(Дія))+1),ROWS($B$3:B51)))&\" \"&CHAR(10)&(INDEX(Результат,SMALL(IF(Цілі=$B$2,ROW(Результат)-MIN(ROW(Результат))+1),ROWS($B$3:B51))))&CHAR(10),\"\")","v":""},null,{"$f":"IFERROR(INDEX(Дія,SMALL(IF(Цілі=$D$2,ROW(Дія)-MIN(ROW(Дія))+1),ROWS($B$3:B51)))&CHAR(10),\"\")","v":""},null,{"$f":"IFERROR(INDEX(Дія,SMALL(IF(Цілі=$F$2,ROW(Дія)-MIN(ROW(Дія))+1),ROWS($B$3:B51)))&CHAR(10),\"\")","v":""},null,{"$f":"IFERROR(INDEX(Дія,SMALL(IF(Цілі=$H$2,ROW(Дія)-MIN(ROW(Дія))+1),ROWS($B$3:B51)))&CHAR(10),\"\")","v":""}]
[null,{"$f":"IFERROR(INDEX(Дія,SMALL(IF(Цілі=$B$2,ROW(Дія)-MIN(ROW(Дія))+1),ROWS($B$3:B52)))&\" \"&CHAR(10)&(INDEX(Результат,SMALL(IF(Цілі=$B$2,ROW(Результат)-MIN(ROW(Результат))+1),ROWS($B$3:B52))))&CHAR(10),\"\")","v":""},null,{"$f":"IFERROR(INDEX(Дія,SMALL(IF(Цілі=$D$2,ROW(Дія)-MIN(ROW(Дія))+1),ROWS($B$3:B52)))&CHAR(10),\"\")","v":""},null,{"$f":"IFERROR(INDEX(Дія,SMALL(IF(Цілі=$F$2,ROW(Дія)-MIN(ROW(Дія))+1),ROWS($B$3:B52)))&CHAR(10),\"\")","v":""},null,{"$f":"IFERROR(INDEX(Дія,SMALL(IF(Цілі=$H$2,ROW(Дія)-MIN(ROW(Дія))+1),ROWS($B$3:B52)))&CHAR(10),\"\")","v":""}]
[null,{"$f":"IFERROR(INDEX(Дія,SMALL(IF(Цілі=$B$2,ROW(Дія)-MIN(ROW(Дія))+1),ROWS($B$3:B53)))&\" \"&CHAR(10)&(INDEX(Результат,SMALL(IF(Цілі=$B$2,ROW(Результат)-MIN(ROW(Результат))+1),ROWS($B$3:B53))))&CHAR(10),\"\")","v":""},null,{"$f":"IFERROR(INDEX(Дія,SMALL(IF(Цілі=$D$2,ROW(Дія)-MIN(ROW(Дія))+1),ROWS($B$3:B53)))&CHAR(10),\"\")","v":""},null,{"$f":"IFERROR(INDEX(Дія,SMALL(IF(Цілі=$F$2,ROW(Дія)-MIN(ROW(Дія))+1),ROWS($B$3:B53)))&CHAR(10),\"\")","v":""},null,{"$f":"IFERROR(INDEX(Дія,SMALL(IF(Цілі=$H$2,ROW(Дія)-MIN(ROW(Дія))+1),ROWS($B$3:B53)))&CHAR(10),\"\")","v":""}]
[null,{"$f":"IFERROR(INDEX(Дія,SMALL(IF(Цілі=$B$2,ROW(Дія)-MIN(ROW(Дія))+1),ROWS($B$3:B54)))&\" \"&CHAR(10)&(INDEX(Результат,SMALL(IF(Цілі=$B$2,ROW(Результат)-MIN(ROW(Результат))+1),ROWS($B$3:B54))))&CHAR(10),\"\")","v":""},null,{"$f":"IFERROR(INDEX(Дія,SMALL(IF(Цілі=$D$2,ROW(Дія)-MIN(ROW(Дія))+1),ROWS($B$3:B54)))&CHAR(10),\"\")","v":""},null,{"$f":"IFERROR(INDEX(Дія,SMALL(IF(Цілі=$F$2,ROW(Дія)-MIN(ROW(Дія))+1),ROWS($B$3:B54)))&CHAR(10),\"\")","v":""},null,{"$f":"IFERROR(INDEX(Дія,SMALL(IF(Цілі=$H$2,ROW(Дія)-MIN(ROW(Дія))+1),ROWS($B$3:B54)))&CHAR(10),\"\")","v":""}]
[null,{"$f":"IFERROR(INDEX(Дія,SMALL(IF(Цілі=$B$2,ROW(Дія)-MIN(ROW(Дія))+1),ROWS($B$3:B55)))&\" \"&CHAR(10)&(INDEX(Результат,SMALL(IF(Цілі=$B$2,ROW(Результат)-MIN(ROW(Результат))+1),ROWS($B$3:B55))))&CHAR(10),\"\")","v":""},null,{"$f":"IFERROR(INDEX(Дія,SMALL(IF(Цілі=$D$2,ROW(Дія)-MIN(ROW(Дія))+1),ROWS($B$3:B55)))&CHAR(10),\"\")","v":""},null,{"$f":"IFERROR(INDEX(Дія,SMALL(IF(Цілі=$F$2,ROW(Дія)-MIN(ROW(Дія))+1),ROWS($B$3:B55)))&CHAR(10),\"\")","v":""},null,{"$f":"IFERROR(INDEX(Дія,SMALL(IF(Цілі=$H$2,ROW(Дія)-MIN(ROW(Дія))+1),ROWS($B$3:B55)))&CHAR(10),\"\")","v":""}]
[null,{"$f":"IFERROR(INDEX(Дія,SMALL(IF(Цілі=$B$2,ROW(Дія)-MIN(ROW(Дія))+1),ROWS($B$3:B56)))&\" \"&CHAR(10)&(INDEX(Результат,SMALL(IF(Цілі=$B$2,ROW(Результат)-MIN(ROW(Результат))+1),ROWS($B$3:B56))))&CHAR(10),\"\")","v":""},null,{"$f":"IFERROR(INDEX(Дія,SMALL(IF(Цілі=$D$2,ROW(Дія)-MIN(ROW(Дія))+1),ROWS($B$3:B56)))&CHAR(10),\"\")","v":""},null,{"$f":"IFERROR(INDEX(Дія,SMALL(IF(Цілі=$F$2,ROW(Дія)-MIN(ROW(Дія))+1),ROWS($B$3:B56)))&CHAR(10),\"\")","v":""},null,{"$f":"IFERROR(INDEX(Дія,SMALL(IF(Цілі=$H$2,ROW(Дія)-MIN(ROW(Дія))+1),ROWS($B$3:B56)))&CHAR(10),\"\")","v":""}]
[null,{"$f":"IFERROR(INDEX(Дія,SMALL(IF(Цілі=$B$2,ROW(Дія)-MIN(ROW(Дія))+1),ROWS($B$3:B57)))&\" \"&CHAR(10)&(INDEX(Результат,SMALL(IF(Цілі=$B$2,ROW(Результат)-MIN(ROW(Результат))+1),ROWS($B$3:B57))))&CHAR(10),\"\")","v":""},null,{"$f":"IFERROR(INDEX(Дія,SMALL(IF(Цілі=$D$2,ROW(Дія)-MIN(ROW(Дія))+1),ROWS($B$3:B57)))&CHAR(10),\"\")","v":""},null,{"$f":"IFERROR(INDEX(Дія,SMALL(IF(Цілі=$F$2,ROW(Дія)-MIN(ROW(Дія))+1),ROWS($B$3:B57)))&CHAR(10),\"\")","v":""},null,{"$f":"IFERROR(INDEX(Дія,SMALL(IF(Цілі=$H$2,ROW(Дія)-MIN(ROW(Дія))+1),ROWS($B$3:B57)))&CHAR(10),\"\")","v":""}]
[null,{"$f":"IFERROR(INDEX(Дія,SMALL(IF(Цілі=$B$2,ROW(Дія)-MIN(ROW(Дія))+1),ROWS($B$3:B58)))&\" \"&CHAR(10)&(INDEX(Результат,SMALL(IF(Цілі=$B$2,ROW(Результат)-MIN(ROW(Результат))+1),ROWS($B$3:B58))))&CHAR(10),\"\")","v":""},null,{"$f":"IFERROR(INDEX(Дія,SMALL(IF(Цілі=$D$2,ROW(Дія)-MIN(ROW(Дія))+1),ROWS($B$3:B58)))&CHAR(10),\"\")","v":""},null,{"$f":"IFERROR(INDEX(Дія,SMALL(IF(Цілі=$F$2,ROW(Дія)-MIN(ROW(Дія))+1),ROWS($B$3:B58)))&CHAR(10),\"\")","v":""},null,{"$f":"IFERROR(INDEX(Дія,SMALL(IF(Цілі=$H$2,ROW(Дія)-MIN(ROW(Дія))+1),ROWS($B$3:B58)))&CHAR(10),\"\")","v":""}]
[null,{"$f":"IFERROR(INDEX(Дія,SMALL(IF(Цілі=$B$2,ROW(Дія)-MIN(ROW(Дія))+1),ROWS($B$3:B59)))&\" \"&CHAR(10)&(INDEX(Результат,SMALL(IF(Цілі=$B$2,ROW(Результат)-MIN(ROW(Результат))+1),ROWS($B$3:B59))))&CHAR(10),\"\")","v":""},null,{"$f":"IFERROR(INDEX(Дія,SMALL(IF(Цілі=$D$2,ROW(Дія)-MIN(ROW(Дія))+1),ROWS($B$3:B59)))&CHAR(10),\"\")","v":""},null,{"$f":"IFERROR(INDEX(Дія,SMALL(IF(Цілі=$F$2,ROW(Дія)-MIN(ROW(Дія))+1),ROWS($B$3:B59)))&CHAR(10),\"\")","v":""},null,{"$f":"IFERROR(INDEX(Дія,SMALL(IF(Цілі=$H$2,ROW(Дія)-MIN(ROW(Дія))+1),ROWS($B$3:B59)))&CHAR(10),\"\")","v":""}]
[null,{"$f":"IFERROR(INDEX(Дія,SMALL(IF(Цілі=$B$2,ROW(Дія)-MIN(ROW(Дія))+1),ROWS($B$3:B60)))&\" \"&CHAR(10)&(INDEX(Результат,SMALL(IF(Цілі=$B$2,ROW(Результат)-MIN(ROW(Результат))+1),ROWS($B$3:B60))))&CHAR(10),\"\")","v":""},null,{"$f":"IFERROR(INDEX(Дія,SMALL(IF(Цілі=$D$2,ROW(Дія)-MIN(ROW(Дія))+1),ROWS($B$3:B60)))&CHAR(10),\"\")","v":""},null,{"$f":"IFERROR(INDEX(Дія,SMALL(IF(Цілі=$F$2,ROW(Дія)-MIN(ROW(Дія))+1),ROWS($B$3:B60)))&CHAR(10),\"\")","v":""},null,{"$f":"IFERROR(INDEX(Дія,SMALL(IF(Цілі=$H$2,ROW(Дія)-MIN(ROW(Дія))+1),ROWS($B$3:B60)))&CHAR(10),\"\")","v":""}]
[null,{"$f":"IFERROR(INDEX(Дія,SMALL(IF(Цілі=$B$2,ROW(Дія)-MIN(ROW(Дія))+1),ROWS($B$3:B61)))&\" \"&CHAR(10)&(INDEX(Результат,SMALL(IF(Цілі=$B$2,ROW(Результат)-MIN(ROW(Результат))+1),ROWS($B$3:B61))))&CHAR(10),\"\")","v":""},null,{"$f":"IFERROR(INDEX(Дія,SMALL(IF(Цілі=$D$2,ROW(Дія)-MIN(ROW(Дія))+1),ROWS($B$3:B61)))&CHAR(10),\"\")","v":""},null,{"$f":"IFERROR(INDEX(Дія,SMALL(IF(Цілі=$F$2,ROW(Дія)-MIN(ROW(Дія))+1),ROWS($B$3:B61)))&CHAR(10),\"\")","v":""},null,{"$f":"IFERROR(INDEX(Дія,SMALL(IF(Цілі=$H$2,ROW(Дія)-MIN(ROW(Дія))+1),ROWS($B$3:B61)))&CHAR(10),\"\")","v":""}]
[null,{"$f":"IFERROR(INDEX(Дія,SMALL(IF(Цілі=$B$2,ROW(Дія)-MIN(ROW(Дія))+1),ROWS($B$3:B62)))&\" \"&CHAR(10)&(INDEX(Результат,SMALL(IF(Цілі=$B$2,ROW(Результат)-MIN(ROW(Результат))+1),ROWS($B$3:B62))))&CHAR(10),\"\")","v":""},null,{"$f":"IFERROR(INDEX(Дія,SMALL(IF(Цілі=$D$2,ROW(Дія)-MIN(ROW(Дія))+1),ROWS($B$3:B62)))&CHAR(10),\"\")","v":""},null,{"$f":"IFERROR(INDEX(Дія,SMALL(IF(Цілі=$F$2,ROW(Дія)-MIN(ROW(Дія))+1),ROWS($B$3:B62)))&CHAR(10),\"\")","v":""},null,{"$f":"IFERROR(INDEX(Дія,SMALL(IF(Цілі=$H$2,ROW(Дія)-MIN(ROW(Дія))+1),ROWS($B$3:B62)))&CHAR(10),\"\")","v":""}]
[null,{"$f":"IFERROR(INDEX(Дія,SMALL(IF(Цілі=$B$2,ROW(Дія)-MIN(ROW(Дія))+1),ROWS($B$3:B63)))&\" \"&CHAR(10)&(INDEX(Результат,SMALL(IF(Цілі=$B$2,ROW(Результат)-MIN(ROW(Результат))+1),ROWS($B$3:B63))))&CHAR(10),\"\")","v":""},null,{"$f":"IFERROR(INDEX(Дія,SMALL(IF(Цілі=$D$2,ROW(Дія)-MIN(ROW(Дія))+1),ROWS($B$3:B63)))&CHAR(10),\"\")","v":""},null,{"$f":"IFERROR(INDEX(Дія,SMALL(IF(Цілі=$F$2,ROW(Дія)-MIN(ROW(Дія))+1),ROWS($B$3:B63)))&CHAR(10),\"\")","v":""},null,{"$f":"IFERROR(INDEX(Дія,SMALL(IF(Цілі=$H$2,ROW(Дія)-MIN(ROW(Дія))+1),ROWS($B$3:B63)))&CHAR(10),\"\")","v":""}]
[null,{"$f":"IFERROR(INDEX(Дія,SMALL(IF(Цілі=$B$2,ROW(Дія)-MIN(ROW(Дія))+1),ROWS($B$3:B64)))&\" \"&CHAR(10)&(INDEX(Результат,SMALL(IF(Цілі=$B$2,ROW(Результат)-MIN(ROW(Результат))+1),ROWS($B$3:B64))))&CHAR(10),\"\")","v":""},null,{"$f":"IFERROR(INDEX(Дія,SMALL(IF(Цілі=$D$2,ROW(Дія)-MIN(ROW(Дія))+1),ROWS($B$3:B64)))&CHAR(10),\"\")","v":""},null,{"$f":"IFERROR(INDEX(Дія,SMALL(IF(Цілі=$F$2,ROW(Дія)-MIN(ROW(Дія))+1),ROWS($B$3:B64)))&CHAR(10),\"\")","v":""},null,{"$f":"IFERROR(INDEX(Дія,SMALL(IF(Цілі=$H$2,ROW(Дія)-MIN(ROW(Дія))+1),ROWS($B$3:B64)))&CHAR(10),\"\")","v":""}]
[null,{"$f":"IFERROR(INDEX(Дія,SMALL(IF(Цілі=$B$2,ROW(Дія)-MIN(ROW(Дія))+1),ROWS($B$3:B65)))&\" \"&CHAR(10)&(INDEX(Результат,SMALL(IF(Цілі=$B$2,ROW(Результат)-MIN(ROW(Результат))+1),ROWS($B$3:B65))))&CHAR(10),\"\")","v":""},null,{"$f":"IFERROR(INDEX(Дія,SMALL(IF(Цілі=$D$2,ROW(Дія)-MIN(ROW(Дія))+1),ROWS($B$3:B65)))&CHAR(10),\"\")","v":""},null,{"$f":"IFERROR(INDEX(Дія,SMALL(IF(Цілі=$F$2,ROW(Дія)-MIN(ROW(Дія))+1),ROWS($B$3:B65)))&CHAR(10),\"\")","v":""},null,{"$f":"IFERROR(INDEX(Дія,SMALL(IF(Цілі=$H$2,ROW(Дія)-MIN(ROW(Дія))+1),ROWS($B$3:B65)))&CHAR(10),\"\")","v":""}]
[null,{"$f":"IFERROR(INDEX(Дія,SMALL(IF(Цілі=$B$2,ROW(Дія)-MIN(ROW(Дія))+1),ROWS($B$3:B66)))&\" \"&CHAR(10)&(INDEX(Результат,SMALL(IF(Цілі=$B$2,ROW(Результат)-MIN(ROW(Результат))+1),ROWS($B$3:B66))))&CHAR(10),\"\")","v":""},null,{"$f":"IFERROR(INDEX(Дія,SMALL(IF(Цілі=$D$2,ROW(Дія)-MIN(ROW(Дія))+1),ROWS($B$3:B66)))&CHAR(10),\"\")","v":""},null,{"$f":"IFERROR(INDEX(Дія,SMALL(IF(Цілі=$F$2,ROW(Дія)-MIN(ROW(Дія))+1),ROWS($B$3:B66)))&CHAR(10),\"\")","v":""},null,{"$f":"IFERROR(INDEX(Дія,SMALL(IF(Цілі=$H$2,ROW(Дія)-MIN(ROW(Дія))+1),ROWS($B$3:B66)))&CHAR(10),\"\")","v":""}]
[null,{"$f":"IFERROR(INDEX(Дія,SMALL(IF(Цілі=$B$2,ROW(Дія)-MIN(ROW(Дія))+1),ROWS($B$3:B67)))&\" \"&CHAR(10)&(INDEX(Результат,SMALL(IF(Цілі=$B$2,ROW(Результат)-MIN(ROW(Результат))+1),ROWS($B$3:B67))))&CHAR(10),\"\")","v":""},null,{"$f":"IFERROR(INDEX(Дія,SMALL(IF(Цілі=$D$2,ROW(Дія)-MIN(ROW(Дія))+1),ROWS($B$3:B67)))&CHAR(10),\"\")","v":""},null,{"$f":"IFERROR(INDEX(Дія,SMALL(IF(Цілі=$F$2,ROW(Дія)-MIN(ROW(Дія))+1),ROWS($B$3:B67)))&CHAR(10),\"\")","v":""},null,{"$f":"IFERROR(INDEX(Дія,SMALL(IF(Цілі=$H$2,ROW(Дія)-MIN(ROW(Дія))+1),ROWS($B$3:B67)))&CHAR(10),\"\")","v":""}]
[null,{"$f":"IFERROR(INDEX(Дія,SMALL(IF(Цілі=$B$2,ROW(Дія)-MIN(ROW(Дія))+1),ROWS($B$3:B68)))&\" \"&CHAR(10)&(INDEX(Результат,SMALL(IF(Цілі=$B$2,ROW(Результат)-MIN(ROW(Результат))+1),ROWS($B$3:B68))))&CHAR(10),\"\")","v":""},null,{"$f":"IFERROR(INDEX(Дія,SMALL(IF(Цілі=$D$2,ROW(Дія)-MIN(ROW(Дія))+1),ROWS($B$3:B68)))&CHAR(10),\"\")","v":""},null,{"$f":"IFERROR(INDEX(Дія,SMALL(IF(Цілі=$F$2,ROW(Дія)-MIN(ROW(Дія))+1),ROWS($B$3:B68)))&CHAR(10),\"\")","v":""},null,{"$f":"IFERROR(INDEX(Дія,SMALL(IF(Цілі=$H$2,ROW(Дія)-MIN(ROW(Дія))+1),ROWS($B$3:B68)))&CHAR(10),\"\")","v":""}]
[null,{"$f":"IFERROR(INDEX(Дія,SMALL(IF(Цілі=$B$2,ROW(Дія)-MIN(ROW(Дія))+1),ROWS($B$3:B69)))&\" \"&CHAR(10)&(INDEX(Результат,SMALL(IF(Цілі=$B$2,ROW(Результат)-MIN(ROW(Результат))+1),ROWS($B$3:B69))))&CHAR(10),\"\")","v":""},null,{"$f":"IFERROR(INDEX(Дія,SMALL(IF(Цілі=$D$2,ROW(Дія)-MIN(ROW(Дія))+1),ROWS($B$3:B69)))&CHAR(10),\"\")","v":""},null,{"$f":"IFERROR(INDEX(Дія,SMALL(IF(Цілі=$F$2,ROW(Дія)-MIN(ROW(Дія))+1),ROWS($B$3:B69)))&CHAR(10),\"\")","v":""},null,{"$f":"IFERROR(INDEX(Дія,SMALL(IF(Цілі=$H$2,ROW(Дія)-MIN(ROW(Дія))+1),ROWS($B$3:B69)))&CHAR(10),\"\")","v":""}]
[null,{"$f":"IFERROR(INDEX(Дія,SMALL(IF(Цілі=$B$2,ROW(Дія)-MIN(ROW(Дія))+1),ROWS($B$3:B70)))&\" \"&CHAR(10)&(INDEX(Результат,SMALL(IF(Цілі=$B$2,ROW(Результат)-MIN(ROW(Результат))+1),ROWS($B$3:B70))))&CHAR(10),\"\")","v":""},null,{"$f":"IFERROR(INDEX(Дія,SMALL(IF(Цілі=$D$2,ROW(Дія)-MIN(ROW(Дія))+1),ROWS($B$3:B70)))&CHAR(10),\"\")","v":""},null,{"$f":"IFERROR(INDEX(Дія,SMALL(IF(Цілі=$F$2,ROW(Дія)-MIN(ROW(Дія))+1),ROWS($B$3:B70)))&CHAR(10),\"\")","v":""},null,{"$f":"IFERROR(INDEX(Дія,SMALL(IF(Цілі=$H$2,ROW(Дія)-MIN(ROW(Дія))+1),ROWS($B$3:B70)))&CHAR(10),\"\")","v":""}]
[null,{"$f":"IFERROR(INDEX(Дія,SMALL(IF(Цілі=$B$2,ROW(Дія)-MIN(ROW(Дія))+1),ROWS($B$3:B71)))&\" \"&CHAR(10)&(INDEX(Результат,SMALL(IF(Цілі=$B$2,ROW(Результат)-MIN(ROW(Результат))+1),ROWS($B$3:B71))))&CHAR(10),\"\")","v":""},null,{"$f":"IFERROR(INDEX(Дія,SMALL(IF(Цілі=$D$2,ROW(Дія)-MIN(ROW(Дія))+1),ROWS($B$3:B71)))&CHAR(10),\"\")","v":""},null,{"$f":"IFERROR(INDEX(Дія,SMALL(IF(Цілі=$F$2,ROW(Дія)-MIN(ROW(Дія))+1),ROWS($B$3:B71)))&CHAR(10),\"\")","v":""},null,{"$f":"IFERROR(INDEX(Дія,SMALL(IF(Цілі=$H$2,ROW(Дія)-MIN(ROW(Дія))+1),ROWS($B$3:B71)))&CHAR(10),\"\")","v":""}]
[null,{"$f":"IFERROR(INDEX(Дія,SMALL(IF(Цілі=$B$2,ROW(Дія)-MIN(ROW(Дія))+1),ROWS($B$3:B72)))&\" \"&CHAR(10)&(INDEX(Результат,SMALL(IF(Цілі=$B$2,ROW(Результат)-MIN(ROW(Результат))+1),ROWS($B$3:B72))))&CHAR(10),\"\")","v":""},null,{"$f":"IFERROR(INDEX(Дія,SMALL(IF(Цілі=$D$2,ROW(Дія)-MIN(ROW(Дія))+1),ROWS($B$3:B72)))&CHAR(10),\"\")","v":""},null,{"$f":"IFERROR(INDEX(Дія,SMALL(IF(Цілі=$F$2,ROW(Дія)-MIN(ROW(Дія))+1),ROWS($B$3:B72)))&CHAR(10),\"\")","v":""},null,{"$f":"IFERROR(INDEX(Дія,SMALL(IF(Цілі=$H$2,ROW(Дія)-MIN(ROW(Дія))+1),ROWS($B$3:B72)))&CHAR(10),\"\")","v":""}]
[null,{"$f":"IFERROR(INDEX(Дія,SMALL(IF(Цілі=$B$2,ROW(Дія)-MIN(ROW(Дія))+1),ROWS($B$3:B73)))&\" \"&CHAR(10)&(INDEX(Результат,SMALL(IF(Цілі=$B$2,ROW(Результат)-MIN(ROW(Результат))+1),ROWS($B$3:B73))))&CHAR(10),\"\")","v":""},null,{"$f":"IFERROR(INDEX(Дія,SMALL(IF(Цілі=$D$2,ROW(Дія)-MIN(ROW(Дія))+1),ROWS($B$3:B73)))&CHAR(10),\"\")","v":""},null,{"$f":"IFERROR(INDEX(Дія,SMALL(IF(Цілі=$F$2,ROW(Дія)-MIN(ROW(Дія))+1),ROWS($B$3:B73)))&CHAR(10),\"\")","v":""},null,{"$f":"IFERROR(INDEX(Дія,SMALL(IF(Цілі=$H$2,ROW(Дія)-MIN(ROW(Дія))+1),ROWS($B$3:B73)))&CHAR(10),\"\")","v":""}]
[null,{"$f":"IFERROR(INDEX(Дія,SMALL(IF(Цілі=$B$2,ROW(Дія)-MIN(ROW(Дія))+1),ROWS($B$3:B74)))&\" \"&CHAR(10)&(INDEX(Результат,SMALL(IF(Цілі=$B$2,ROW(Результат)-MIN(ROW(Результат))+1),ROWS($B$3:B74))))&CHAR(10),\"\")","v":""},null,{"$f":"IFERROR(INDEX(Дія,SMALL(IF(Цілі=$D$2,ROW(Дія)-MIN(ROW(Дія))+1),ROWS($B$3:B74)))&CHAR(10),\"\")","v":""},null,{"$f":"IFERROR(INDEX(Дія,SMALL(IF(Цілі=$F$2,ROW(Дія)-MIN(ROW(Дія))+1),ROWS($B$3:B74)))&CHAR(10),\"\")","v":""},null,{"$f":"IFERROR(INDEX(Дія,SMALL(IF(Цілі=$H$2,ROW(Дія)-MIN(ROW(Дія))+1),ROWS($B$3:B74)))&CHAR(10),\"\")","v":""}]
[null,{"$f":"IFERROR(INDEX(Дія,SMALL(IF(Цілі=$B$2,ROW(Дія)-MIN(ROW(Дія))+1),ROWS($B$3:B75)))&\" \"&CHAR(10)&(INDEX(Результат,SMALL(IF(Цілі=$B$2,ROW(Результат)-MIN(ROW(Результат))+1),ROWS($B$3:B75))))&CHAR(10),\"\")","v":""},null,{"$f":"IFERROR(INDEX(Дія,SMALL(IF(Цілі=$D$2,ROW(Дія)-MIN(ROW(Дія))+1),ROWS($B$3:B75)))&CHAR(10),\"\")","v":""},null,{"$f":"IFERROR(INDEX(Дія,SMALL(IF(Цілі=$F$2,ROW(Дія)-MIN(ROW(Дія))+1),ROWS($B$3:B75)))&CHAR(10),\"\")","v":""},null,{"$f":"IFERROR(INDEX(Дія,SMALL(IF(Цілі=$H$2,ROW(Дія)-MIN(ROW(Дія))+1),ROWS($B$3:B75)))&CHAR(10),\"\")","v":""}]
[null,{"$f":"IFERROR(INDEX(Дія,SMALL(IF(Цілі=$B$2,ROW(Дія)-MIN(ROW(Дія))+1),ROWS($B$3:B76)))&\" \"&CHAR(10)&(INDEX(Результат,SMALL(IF(Цілі=$B$2,ROW(Результат)-MIN(ROW(Результат))+1),ROWS($B$3:B76))))&CHAR(10),\"\")","v":""},null,{"$f":"IFERROR(INDEX(Дія,SMALL(IF(Цілі=$D$2,ROW(Дія)-MIN(ROW(Дія))+1),ROWS($B$3:B76)))&CHAR(10),\"\")","v":""},null,{"$f":"IFERROR(INDEX(Дія,SMALL(IF(Цілі=$F$2,ROW(Дія)-MIN(ROW(Дія))+1),ROWS($B$3:B76)))&CHAR(10),\"\")","v":""},null,{"$f":"IFERROR(INDEX(Дія,SMALL(IF(Цілі=$H$2,ROW(Дія)-MIN(ROW(Дія))+1),ROWS($B$3:B76)))&CHAR(10),\"\")","v":""}]
[null,{"$f":"IFERROR(INDEX(Дія,SMALL(IF(Цілі=$B$2,ROW(Дія)-MIN(ROW(Дія))+1),ROWS($B$3:B77)))&\" \"&CHAR(10)&(INDEX(Результат,SMALL(IF(Цілі=$B$2,ROW(Результат)-MIN(ROW(Результат))+1),ROWS($B$3:B77))))&CHAR(10),\"\")","v":""},null,{"$f":"IFERROR(INDEX(Дія,SMALL(IF(Цілі=$D$2,ROW(Дія)-MIN(ROW(Дія))+1),ROWS($B$3:B77)))&CHAR(10),\"\")","v":""},null,{"$f":"IFERROR(INDEX(Дія,SMALL(IF(Цілі=$F$2,ROW(Дія)-MIN(ROW(Дія))+1),ROWS($B$3:B77)))&CHAR(10),\"\")","v":""},null,{"$f":"IFERROR(INDEX(Дія,SMALL(IF(Цілі=$H$2,ROW(Дія)-MIN(ROW(Дія))+1),ROWS($B$3:B77)))&CHAR(10),\"\")","v":""}]
[null,{"$f":"IFERROR(INDEX(Дія,SMALL(IF(Цілі=$B$2,ROW(Дія)-MIN(ROW(Дія))+1),ROWS($B$3:B78)))&\" \"&CHAR(10)&(INDEX(Результат,SMALL(IF(Цілі=$B$2,ROW(Результат)-MIN(ROW(Результат))+1),ROWS($B$3:B78))))&CHAR(10),\"\")","v":""},null,{"$f":"IFERROR(INDEX(Дія,SMALL(IF(Цілі=$D$2,ROW(Дія)-MIN(ROW(Дія))+1),ROWS($B$3:B78)))&CHAR(10),\"\")","v":""},null,{"$f":"IFERROR(INDEX(Дія,SMALL(IF(Цілі=$F$2,ROW(Дія)-MIN(ROW(Дія))+1),ROWS($B$3:B78)))&CHAR(10),\"\")","v":""},null,{"$f":"IFERROR(INDEX(Дія,SMALL(IF(Цілі=$H$2,ROW(Дія)-MIN(ROW(Дія))+1),ROWS($B$3:B78)))&CHAR(10),\"\")","v":""}]
[null,{"$f":"IFERROR(INDEX(Дія,SMALL(IF(Цілі=$B$2,ROW(Дія)-MIN(ROW(Дія))+1),ROWS($B$3:B79)))&\" \"&CHAR(10)&(INDEX(Результат,SMALL(IF(Цілі=$B$2,ROW(Результат)-MIN(ROW(Результат))+1),ROWS($B$3:B79))))&CHAR(10),\"\")","v":""},null,{"$f":"IFERROR(INDEX(Дія,SMALL(IF(Цілі=$D$2,ROW(Дія)-MIN(ROW(Дія))+1),ROWS($B$3:B79)))&CHAR(10),\"\")","v":""},null,{"$f":"IFERROR(INDEX(Дія,SMALL(IF(Цілі=$F$2,ROW(Дія)-MIN(ROW(Дія))+1),ROWS($B$3:B79)))&CHAR(10),\"\")","v":""},null,{"$f":"IFERROR(INDEX(Дія,SMALL(IF(Цілі=$H$2,ROW(Дія)-MIN(ROW(Дія))+1),ROWS($B$3:B79)))&CHAR(10),\"\")","v":""}]
[null,{"$f":"IFERROR(INDEX(Дія,SMALL(IF(Цілі=$B$2,ROW(Дія)-MIN(ROW(Дія))+1),ROWS($B$3:B80)))&\" \"&CHAR(10)&(INDEX(Результат,SMALL(IF(Цілі=$B$2,ROW(Результат)-MIN(ROW(Результат))+1),ROWS($B$3:B80))))&CHAR(10),\"\")","v":""},null,{"$f":"IFERROR(INDEX(Дія,SMALL(IF(Цілі=$D$2,ROW(Дія)-MIN(ROW(Дія))+1),ROWS($B$3:B80)))&CHAR(10),\"\")","v":""},null,{"$f":"IFERROR(INDEX(Дія,SMALL(IF(Цілі=$F$2,ROW(Дія)-MIN(ROW(Дія))+1),ROWS($B$3:B80)))&CHAR(10),\"\")","v":""},null,{"$f":"IFERROR(INDEX(Дія,SMALL(IF(Цілі=$H$2,ROW(Дія)-MIN(ROW(Дія))+1),ROWS($B$3:B80)))&CHAR(10),\"\")","v":""}]
[null,{"$f":"IFERROR(INDEX(Дія,SMALL(IF(Цілі=$B$2,ROW(Дія)-MIN(ROW(Дія))+1),ROWS($B$3:B81)))&\" \"&CHAR(10)&(INDEX(Результат,SMALL(IF(Цілі=$B$2,ROW(Результат)-MIN(ROW(Результат))+1),ROWS($B$3:B81))))&CHAR(10),\"\")","v":""},null,{"$f":"IFERROR(INDEX(Дія,SMALL(IF(Цілі=$D$2,ROW(Дія)-MIN(ROW(Дія))+1),ROWS($B$3:B81)))&CHAR(10),\"\")","v":""},null,{"$f":"IFERROR(INDEX(Дія,SMALL(IF(Цілі=$F$2,ROW(Дія)-MIN(ROW(Дія))+1),ROWS($B$3:B81)))&CHAR(10),\"\")","v":""},null,{"$f":"IFERROR(INDEX(Дія,SMALL(IF(Цілі=$H$2,ROW(Дія)-MIN(ROW(Дія))+1),ROWS($B$3:B81)))&CHAR(10),\"\")","v":""}]
[null,{"$f":"IFERROR(INDEX(Дія,SMALL(IF(Цілі=$B$2,ROW(Дія)-MIN(ROW(Дія))+1),ROWS($B$3:B82)))&\" \"&CHAR(10)&(INDEX(Результат,SMALL(IF(Цілі=$B$2,ROW(Результат)-MIN(ROW(Результат))+1),ROWS($B$3:B82))))&CHAR(10),\"\")","v":""},null,{"$f":"IFERROR(INDEX(Дія,SMALL(IF(Цілі=$D$2,ROW(Дія)-MIN(ROW(Дія))+1),ROWS($B$3:B82)))&CHAR(10),\"\")","v":""},null,{"$f":"IFERROR(INDEX(Дія,SMALL(IF(Цілі=$F$2,ROW(Дія)-MIN(ROW(Дія))+1),ROWS($B$3:B82)))&CHAR(10),\"\")","v":""},null,{"$f":"IFERROR(INDEX(Дія,SMALL(IF(Цілі=$H$2,ROW(Дія)-MIN(ROW(Дія))+1),ROWS($B$3:B82)))&CHAR(10),\"\")","v":""}]
[null,{"$f":"IFERROR(INDEX(Дія,SMALL(IF(Цілі=$B$2,ROW(Дія)-MIN(ROW(Дія))+1),ROWS($B$3:B83)))&\" \"&CHAR(10)&(INDEX(Результат,SMALL(IF(Цілі=$B$2,ROW(Результат)-MIN(ROW(Результат))+1),ROWS($B$3:B83))))&CHAR(10),\"\")","v":""},null,{"$f":"IFERROR(INDEX(Дія,SMALL(IF(Цілі=$D$2,ROW(Дія)-MIN(ROW(Дія))+1),ROWS($B$3:B83)))&CHAR(10),\"\")","v":""},null,{"$f":"IFERROR(INDEX(Дія,SMALL(IF(Цілі=$F$2,ROW(Дія)-MIN(ROW(Дія))+1),ROWS($B$3:B83)))&CHAR(10),\"\")","v":""},null,{"$f":"IFERROR(INDEX(Дія,SMALL(IF(Цілі=$H$2,ROW(Дія)-MIN(ROW(Дія))+1),ROWS($B$3:B83)))&CHAR(10),\"\")","v":""}]
[null,{"$f":"IFERROR(INDEX(Дія,SMALL(IF(Цілі=$B$2,ROW(Дія)-MIN(ROW(Дія))+1),ROWS($B$3:B84)))&\" \"&CHAR(10)&(INDEX(Результат,SMALL(IF(Цілі=$B$2,ROW(Результат)-MIN(ROW(Результат))+1),ROWS($B$3:B84))))&CHAR(10),\"\")","v":""},null,{"$f":"IFERROR(INDEX(Дія,SMALL(IF(Цілі=$D$2,ROW(Дія)-MIN(ROW(Дія))+1),ROWS($B$3:B84)))&CHAR(10),\"\")","v":""},null,{"$f":"IFERROR(INDEX(Дія,SMALL(IF(Цілі=$F$2,ROW(Дія)-MIN(ROW(Дія))+1),ROWS($B$3:B84)))&CHAR(10),\"\")","v":""},null,{"$f":"IFERROR(INDEX(Дія,SMALL(IF(Цілі=$H$2,ROW(Дія)-MIN(ROW(Дія))+1),ROWS($B$3:B84)))&CHAR(10),\"\")","v":""}]
[null,{"$f":"IFERROR(INDEX(Дія,SMALL(IF(Цілі=$B$2,ROW(Дія)-MIN(ROW(Дія))+1),ROWS($B$3:B85)))&\" \"&CHAR(10)&(INDEX(Результат,SMALL(IF(Цілі=$B$2,ROW(Результат)-MIN(ROW(Результат))+1),ROWS($B$3:B85))))&CHAR(10),\"\")","v":""},null,{"$f":"IFERROR(INDEX(Дія,SMALL(IF(Цілі=$D$2,ROW(Дія)-MIN(ROW(Дія))+1),ROWS($B$3:B85)))&CHAR(10),\"\")","v":""},null,{"$f":"IFERROR(INDEX(Дія,SMALL(IF(Цілі=$F$2,ROW(Дія)-MIN(ROW(Дія))+1),ROWS($B$3:B85)))&CHAR(10),\"\")","v":""},null,{"$f":"IFERROR(INDEX(Дія,SMALL(IF(Цілі=$H$2,ROW(Дія)-MIN(ROW(Дія))+1),ROWS($B$3:B85)))&CHAR(10),\"\")","v":""}]
[null,{"$f":"IFERROR(INDEX(Дія,SMALL(IF(Цілі=$B$2,ROW(Дія)-MIN(ROW(Дія))+1),ROWS($B$3:B86)))&\" \"&CHAR(10)&(INDEX(Результат,SMALL(IF(Цілі=$B$2,ROW(Результат)-MIN(ROW(Результат))+1),ROWS($B$3:B86))))&CHAR(10),\"\")","v":""},null,{"$f":"IFERROR(INDEX(Дія,SMALL(IF(Цілі=$D$2,ROW(Дія)-MIN(ROW(Дія))+1),ROWS($B$3:B86)))&CHAR(10),\"\")","v":""},null,{"$f":"IFERROR(INDEX(Дія,SMALL(IF(Цілі=$F$2,ROW(Дія)-MIN(ROW(Дія))+1),ROWS($B$3:B86)))&CHAR(10),\"\")","v":""},null,{"$f":"IFERROR(INDEX(Дія,SMALL(IF(Цілі=$H$2,ROW(Дія)-MIN(ROW(Дія))+1),ROWS($B$3:B86)))&CHAR(10),\"\")","v":""}]
[null,{"$f":"IFERROR(INDEX(Дія,SMALL(IF(Цілі=$B$2,ROW(Дія)-MIN(ROW(Дія))+1),ROWS($B$3:B87)))&\" \"&CHAR(10)&(INDEX(Результат,SMALL(IF(Цілі=$B$2,ROW(Результат)-MIN(ROW(Результат))+1),ROWS($B$3:B87))))&CHAR(10),\"\")","v":""},null,{"$f":"IFERROR(INDEX(Дія,SMALL(IF(Цілі=$D$2,ROW(Дія)-MIN(ROW(Дія))+1),ROWS($B$3:B87)))&CHAR(10),\"\")","v":""},null,{"$f":"IFERROR(INDEX(Дія,SMALL(IF(Цілі=$F$2,ROW(Дія)-MIN(ROW(Дія))+1),ROWS($B$3:B87)))&CHAR(10),\"\")","v":""},null,{"$f":"IFERROR(INDEX(Дія,SMALL(IF(Цілі=$H$2,ROW(Дія)-MIN(ROW(Дія))+1),ROWS($B$3:B87)))&CHAR(10),\"\")","v":""}]
[null,{"$f":"IFERROR(INDEX(Дія,SMALL(IF(Цілі=$B$2,ROW(Дія)-MIN(ROW(Дія))+1),ROWS($B$3:B88)))&\" \"&CHAR(10)&(INDEX(Результат,SMALL(IF(Цілі=$B$2,ROW(Результат)-MIN(ROW(Результат))+1),ROWS($B$3:B88))))&CHAR(10),\"\")","v":""},null,{"$f":"IFERROR(INDEX(Дія,SMALL(IF(Цілі=$D$2,ROW(Дія)-MIN(ROW(Дія))+1),ROWS($B$3:B88)))&CHAR(10),\"\")","v":""},null,{"$f":"IFERROR(INDEX(Дія,SMALL(IF(Цілі=$F$2,ROW(Дія)-MIN(ROW(Дія))+1),ROWS($B$3:B88)))&CHAR(10),\"\")","v":""},null,{"$f":"IFERROR(INDEX(Дія,SMALL(IF(Цілі=$H$2,ROW(Дія)-MIN(ROW(Дія))+1),ROWS($B$3:B88)))&CHAR(10),\"\")","v":""}]
[null,{"$f":"IFERROR(INDEX(Дія,SMALL(IF(Цілі=$B$2,ROW(Дія)-MIN(ROW(Дія))+1),ROWS($B$3:B89)))&\" \"&CHAR(10)&(INDEX(Результат,SMALL(IF(Цілі=$B$2,ROW(Результат)-MIN(ROW(Результат))+1),ROWS($B$3:B89))))&CHAR(10),\"\")","v":""},null,{"$f":"IFERROR(INDEX(Дія,SMALL(IF(Цілі=$D$2,ROW(Дія)-MIN(ROW(Дія))+1),ROWS($B$3:B89)))&CHAR(10),\"\")","v":""},null,{"$f":"IFERROR(INDEX(Дія,SMALL(IF(Цілі=$F$2,ROW(Дія)-MIN(ROW(Дія))+1),ROWS($B$3:B89)))&CHAR(10),\"\")","v":""},null,{"$f":"IFERROR(INDEX(Дія,SMALL(IF(Цілі=$H$2,ROW(Дія)-MIN(ROW(Дія))+1),ROWS($B$3:B89)))&CHAR(10),\"\")","v":""}]
[null,{"$f":"IFERROR(INDEX(Дія,SMALL(IF(Цілі=$B$2,ROW(Дія)-MIN(ROW(Дія))+1),ROWS($B$3:B90)))&\" \"&CHAR(10)&(INDEX(Результат,SMALL(IF(Цілі=$B$2,ROW(Результат)-MIN(ROW(Результат))+1),ROWS($B$3:B90))))&CHAR(10),\"\")","v":""},null,{"$f":"IFERROR(INDEX(Дія,SMALL(IF(Цілі=$D$2,ROW(Дія)-MIN(ROW(Дія))+1),ROWS($B$3:B90)))&CHAR(10),\"\")","v":""},null,{"$f":"IFERROR(INDEX(Дія,SMALL(IF(Цілі=$F$2,ROW(Дія)-MIN(ROW(Дія))+1),ROWS($B$3:B90)))&CHAR(10),\"\")","v":""},null,{"$f":"IFERROR(INDEX(Дія,SMALL(IF(Цілі=$H$2,ROW(Дія)-MIN(ROW(Дія))+1),ROWS($B$3:B90)))&CHAR(10),\"\")","v":""}]
[null,{"$f":"IFERROR(INDEX(Дія,SMALL(IF(Цілі=$B$2,ROW(Дія)-MIN(ROW(Дія))+1),ROWS($B$3:B91)))&\" \"&CHAR(10)&(INDEX(Результат,SMALL(IF(Цілі=$B$2,ROW(Результат)-MIN(ROW(Результат))+1),ROWS($B$3:B91))))&CHAR(10),\"\")","v":""},null,{"$f":"IFERROR(INDEX(Дія,SMALL(IF(Цілі=$D$2,ROW(Дія)-MIN(ROW(Дія))+1),ROWS($B$3:B91)))&CHAR(10),\"\")","v":""},null,{"$f":"IFERROR(INDEX(Дія,SMALL(IF(Цілі=$F$2,ROW(Дія)-MIN(ROW(Дія))+1),ROWS($B$3:B91)))&CHAR(10),\"\")","v":""},null,{"$f":"IFERROR(INDEX(Дія,SMALL(IF(Цілі=$H$2,ROW(Дія)-MIN(ROW(Дія))+1),ROWS($B$3:B91)))&CHAR(10),\"\")","v":""}]
[null,{"$f":"IFERROR(INDEX(Дія,SMALL(IF(Цілі=$B$2,ROW(Дія)-MIN(ROW(Дія))+1),ROWS($B$3:B92)))&\" \"&CHAR(10)&(INDEX(Результат,SMALL(IF(Цілі=$B$2,ROW(Результат)-MIN(ROW(Результат))+1),ROWS($B$3:B92))))&CHAR(10),\"\")","v":""},null,{"$f":"IFERROR(INDEX(Дія,SMALL(IF(Цілі=$D$2,ROW(Дія)-MIN(ROW(Дія))+1),ROWS($B$3:B92)))&CHAR(10),\"\")","v":""},null,{"$f":"IFERROR(INDEX(Дія,SMALL(IF(Цілі=$F$2,ROW(Дія)-MIN(ROW(Дія))+1),ROWS($B$3:B92)))&CHAR(10),\"\")","v":""},null,{"$f":"IFERROR(INDEX(Дія,SMALL(IF(Цілі=$H$2,ROW(Дія)-MIN(ROW(Дія))+1),ROWS($B$3:B92)))&CHAR(10),\"\")","v":""}]
[null,{"$f":"IFERROR(INDEX(Дія,SMALL(IF(Цілі=$B$2,ROW(Дія)-MIN(ROW(Дія))+1),ROWS($B$3:B93)))&\" \"&CHAR(10)&(INDEX(Результат,SMALL(IF(Цілі=$B$2,ROW(Результат)-MIN(ROW(Результат))+1),ROWS($B$3:B93))))&CHAR(10),\"\")","v":""},null,{"$f":"IFERROR(INDEX(Дія,SMALL(IF(Цілі=$D$2,ROW(Дія)-MIN(ROW(Дія))+1),ROWS($B$3:B93)))&CHAR(10),\"\")","v":""},null,{"$f":"IFERROR(INDEX(Дія,SMALL(IF(Цілі=$F$2,ROW(Дія)-MIN(ROW(Дія))+1),ROWS($B$3:B93)))&CHAR(10),\"\")","v":""},null,{"$f":"IFERROR(INDEX(Дія,SMALL(IF(Цілі=$H$2,ROW(Дія)-MIN(ROW(Дія))+1),ROWS($B$3:B93)))&CHAR(10),\"\")","v":""}]
[null,{"$f":"IFERROR(INDEX(Дія,SMALL(IF(Цілі=$B$2,ROW(Дія)-MIN(ROW(Дія))+1),ROWS($B$3:B94)))&\" \"&CHAR(10)&(INDEX(Результат,SMALL(IF(Цілі=$B$2,ROW(Результат)-MIN(ROW(Результат))+1),ROWS($B$3:B94))))&CHAR(10),\"\")","v":""},null,{"$f":"IFERROR(INDEX(Дія,SMALL(IF(Цілі=$D$2,ROW(Дія)-MIN(ROW(Дія))+1),ROWS($B$3:B94)))&CHAR(10),\"\")","v":""},null,{"$f":"IFERROR(INDEX(Дія,SMALL(IF(Цілі=$F$2,ROW(Дія)-MIN(ROW(Дія))+1),ROWS($B$3:B94)))&CHAR(10),\"\")","v":""},null,{"$f":"IFERROR(INDEX(Дія,SMALL(IF(Цілі=$H$2,ROW(Дія)-MIN(ROW(Дія))+1),ROWS($B$3:B94)))&CHAR(10),\"\")","v":""}]
[null,{"$f":"IFERROR(INDEX(Дія,SMALL(IF(Цілі=$B$2,ROW(Дія)-MIN(ROW(Дія))+1),ROWS($B$3:B95)))&\" \"&CHAR(10)&(INDEX(Результат,SMALL(IF(Цілі=$B$2,ROW(Результат)-MIN(ROW(Результат))+1),ROWS($B$3:B95))))&CHAR(10),\"\")","v":""},null,{"$f":"IFERROR(INDEX(Дія,SMALL(IF(Цілі=$D$2,ROW(Дія)-MIN(ROW(Дія))+1),ROWS($B$3:B95)))&CHAR(10),\"\")","v":""},null,{"$f":"IFERROR(INDEX(Дія,SMALL(IF(Цілі=$F$2,ROW(Дія)-MIN(ROW(Дія))+1),ROWS($B$3:B95)))&CHAR(10),\"\")","v":""},null,{"$f":"IFERROR(INDEX(Дія,SMALL(IF(Цілі=$H$2,ROW(Дія)-MIN(ROW(Дія))+1),ROWS($B$3:B95)))&CHAR(10),\"\")","v":""}]
[null,{"$f":"IFERROR(INDEX(Дія,SMALL(IF(Цілі=$B$2,ROW(Дія)-MIN(ROW(Дія))+1),ROWS($B$3:B96)))&\" \"&CHAR(10)&(INDEX(Результат,SMALL(IF(Цілі=$B$2,ROW(Результат)-MIN(ROW(Результат))+1),ROWS($B$3:B96))))&CHAR(10),\"\")","v":""},null,{"$f":"IFERROR(INDEX(Дія,SMALL(IF(Цілі=$D$2,ROW(Дія)-MIN(ROW(Дія))+1),ROWS($B$3:B96)))&CHAR(10),\"\")","v":""},null,{"$f":"IFERROR(INDEX(Дія,SMALL(IF(Цілі=$F$2,ROW(Дія)-MIN(ROW(Дія))+1),ROWS($B$3:B96)))&CHAR(10),\"\")","v":""},null,{"$f":"IFERROR(INDEX(Дія,SMALL(IF(Цілі=$H$2,ROW(Дія)-MIN(ROW(Дія))+1),ROWS($B$3:B96)))&CHAR(10),\"\")","v":""}]
[null,{"$f":"IFERROR(INDEX(Дія,SMALL(IF(Цілі=$B$2,ROW(Дія)-MIN(ROW(Дія))+1),ROWS($B$3:B97)))&\" \"&CHAR(10)&(INDEX(Результат,SMALL(IF(Цілі=$B$2,ROW(Результат)-MIN(ROW(Результат))+1),ROWS($B$3:B97))))&CHAR(10),\"\")","v":""},null,{"$f":"IFERROR(INDEX(Дія,SMALL(IF(Цілі=$D$2,ROW(Дія)-MIN(ROW(Дія))+1),ROWS($B$3:B97)))&CHAR(10),\"\")","v":""},null,{"$f":"IFERROR(INDEX(Дія,SMALL(IF(Цілі=$F$2,ROW(Дія)-MIN(ROW(Дія))+1),ROWS($B$3:B97)))&CHAR(10),\"\")","v":""},null,{"$f":"IFERROR(INDEX(Дія,SMALL(IF(Цілі=$H$2,ROW(Дія)-MIN(ROW(Дія))+1),ROWS($B$3:B97)))&CHAR(10),\"\")","v":""}]
[null,{"$f":"IFERROR(INDEX(Дія,SMALL(IF(Цілі=$B$2,ROW(Дія)-MIN(ROW(Дія))+1),ROWS($B$3:B98)))&\" \"&CHAR(10)&(INDEX(Результат,SMALL(IF(Цілі=$B$2,ROW(Результат)-MIN(ROW(Результат))+1),ROWS($B$3:B98))))&CHAR(10),\"\")","v":""},null,{"$f":"IFERROR(INDEX(Дія,SMALL(IF(Цілі=$D$2,ROW(Дія)-MIN(ROW(Дія))+1),ROWS($B$3:B98)))&CHAR(10),\"\")","v":""},null,{"$f":"IFERROR(INDEX(Дія,SMALL(IF(Цілі=$F$2,ROW(Дія)-MIN(ROW(Дія))+1),ROWS($B$3:B98)))&CHAR(10),\"\")","v":""},null,{"$f":"IFERROR(INDEX(Дія,SMALL(IF(Цілі=$H$2,ROW(Дія)-MIN(ROW(Дія))+1),ROWS($B$3:B98)))&CHAR(10),\"\")","v":""}]
[null,{"$f":"IFERROR(INDEX(Дія,SMALL(IF(Цілі=$B$2,ROW(Дія)-MIN(ROW(Дія))+1),ROWS($B$3:B99)))&\" \"&CHAR(10)&(INDEX(Результат,SMALL(IF(Цілі=$B$2,ROW(Результат)-MIN(ROW(Результат))+1),ROWS($B$3:B99))))&CHAR(10),\"\")","v":""},null,{"$f":"IFERROR(INDEX(Дія,SMALL(IF(Цілі=$D$2,ROW(Дія)-MIN(ROW(Дія))+1),ROWS($B$3:B99)))&CHAR(10),\"\")","v":""},null,{"$f":"IFERROR(INDEX(Дія,SMALL(IF(Цілі=$F$2,ROW(Дія)-MIN(ROW(Дія))+1),ROWS($B$3:B99)))&CHAR(10),\"\")","v":""},null,{"$f":"IFERROR(INDEX(Дія,SMALL(IF(Цілі=$H$2,ROW(Дія)-MIN(ROW(Дія))+1),ROWS($B$3:B99)))&CHAR(10),\"\")","v":""}]
[null,{"$f":"IFERROR(INDEX(Дія,SMALL(IF(Цілі=$B$2,ROW(Дія)-MIN(ROW(Дія))+1),ROWS($B$3:B100)))&\" \"&CHAR(10)&(INDEX(Результат,SMALL(IF(Цілі=$B$2,ROW(Результат)-MIN(ROW(Результат))+1),ROWS($B$3:B100))))&CHAR(10),\"\")","v":""},null,{"$f":"IFERROR(INDEX(Дія,SMALL(IF(Цілі=$D$2,ROW(Дія)-MIN(ROW(Дія))+1),ROWS($B$3:B100)))&CHAR(10),\"\")","v":""},null,{"$f":"IFERROR(INDEX(Дія,SMALL(IF(Цілі=$F$2,ROW(Дія)-MIN(ROW(Дія))+1),ROWS($B$3:B100)))&CHAR(10),\"\")","v":""},null,{"$f":"IFERROR(INDEX(Дія,SMALL(IF(Цілі=$H$2,ROW(Дія)-MIN(ROW(Дія))+1),ROWS($B$3:B100)))&CHAR(10),\"\")","v":""}]

{"sheet":"Відомості","index":2,"n_rows":6,"n_cols":1,"rows_kept":6}
["Відомості про цю книгу"]
["Указівки для невізуальних екранів"]
["Ця книга складається з трьох аркушів. \n\nДані стратегії розвитку\nСтратегія за гнучким методом\nВідомості\n\nУказівки наведено в стовпці A, починаючи з клітинки A1 кожного аркуша. Їх приховано. На всіх кроках інструкцій наведено відомості про відповідний рядок. Кожен наступний крок продовжується в клітинці A2, A3 тощо. Це не стосується випадків, коли явно не передбачено інше, наприклад якщо на наступному кроці не вказано перейти до клітинки A6. \n\nПрихований текст не друкуватиметься.\n\nЩоб вилучити ці вказівки з будь-якого аркуша, просто видаліть стовпець A.\n"]
["Відомості про цю книгу"]
["Введіть інформацію про проміжний етап на аркуші \"Дані стратегії розвитку\".  Обов’язково відсортуйте її за пріоритетом і проміжним етапом, щоб переглянути дані про завершені, поточні, майбутні та короткострокові цілі в порядку спадання. Елементи з найвищим пріоритетом указано вгорі списку. Стратегія розвитку на аркуші \"Стратегія розвитку за гнучким методом\" оновлюється автоматично.\n"]
["Це остання вказівка на цьому аркуші."]